Workbook

Sheet Übersicht
B2: (0) M - N - Interaktionsdiagramme nach DIN EN 1992-1-1 (EC2)
B3: zur Bemessung von symmetrisch bewehrten Rechteck- und Kreisprofilen aus Stahlbeton
B5: Zur Auswahl stehen: | D5: Rechteckquerschnitt mit Rand- und umlaufender Bewehrungsanordnung
D6: Kreisquerschnitte mit umlaufender Bewehrungsanordnung
D7: Normalbetone von C 12/15 bis C 100/115
D8: Leichbetone von LC 12/13 bis LC 60/66
D9: Beliebige Bemessungsschnittgrößen NEd und MEd
B11: Berechnet werden: | D11: Spannungs-Dehnungsverlauf für ausgewählten Beton
D12: Verteilung der Spannungen und Dehnungen über Querschnittshöhe
D13: M-N-Interaktionsdiagramm zum Ablesen des Bewehrungsgrades
D14: erforderliche Bewehrung für ausgewählten Querschnitt und vorgegebene …
D15: … Kombination der Bemessungsschnittgrößen
B17: Darstellung: | J17: (Version: 05/21)

Sheet Dateneingabe
B2: [1] Dateneingabe | D2: =IF(Datenbasis!K116="Nein","","Bitte Diagramme neu berechnen!") ->  | K2: weiter
G3: Beiwert für Bauteileigenschaften | K3: Dimension
B4: Teilsicherheitsbeiwert | F4: gc = | G4: =Datenbasis!E9 -> 1.5 | H4: Teilsicherheitsbeiwert für Beton | K4: [ - ]
F5: gs = | G5: =Datenbasis!F9 -> 1.15 | H5: Teilsicherheitsbeiwert für Betonstahl | K5: [ - ]
B7: Betonfestigkeitsklasse | G7: Parameter der Spannungs-Dehnungslinie des Betons
F8: fcd = | G8: =Datenbasis!$G$23 -> 1.416666667 | H8: Bemessungswert für die Druckfestigkeit | K8: [kN/cm²]
C9: Betonstauchung bei ed/ h £ 0,1 bis eyd zulassen | F9: ec2 = | G9: =Datenbasis!$D$23 -> -2 | H9: Betondehnung bei Erreichen von fcd | K9: [o/oo]
C10: mit ed = MEd / NEd | F10: ec2u = | G10: =Datenbasis!$E$23 -> -3.5 | H10: Grenzdehnung am Druckrand | K10: [o/oo]
C11: ed / h = | D11: =ABS(I19/G19/I22*100) -> 0.4166666667 | F11: n = | G11: =Datenbasis!$F$23 -> 2 | H11: Fülligkeitsbeiwert für Parabelfunktion | K11: [ - ]
B13: Betonstahlgüte | G13: Parameter der Spannungs-Dehnungslinie des Betonstahls
F14: fyd = | G14: =Datenbasis!E16 -> 43.47826087 | H14: Bemessungswert für die Streckgrenze | K14: [kN/cm²]
F15: ftd = | G15: =Datenbasis!F16 -> 45.65217391 | H15: Bemessungswert für die Zugfestigkeit | K15: [kN/cm²]
F16: Es = | G16: =Datenbasis!G14 -> 20000 | H16: Elastizitätsmodul des Bewehrungsstahls | K16: [kN/cm²]
B18: Bemessungsschnittgrößen | E18: (inkl. Teilsicherheitsbeiwert) | G18: Eingabe der Schnittgrößenkombination
F19: NEd = | G19: -4000 | H19: MEd = | I19: 1000 | K19: [kN]; [kNm]
B20: Querschnittsart
G21: Parameter für Bewehrungslage und Querschnittsabmessungen
F22: b = | G22: 40 | H22: h = | I22: 60 | K22: [cm]; [cm]
F23: b0 = | G23: 0 | H23: h0 = | I23: 0 | J23: =Datenbasis!P8 ->  | K23: [cm]; [cm]
F24: A = | G24: =Datenbasis!O8 -> 2400 | H24: A / (b∙h) = | I24: =Datenbasis!N8 -> 1 | K24: [cm²]; [ - ]
F26: d1/ h = | G26: 0.05 | H26: Bezogene Bewehrungslage (d1/ h = d2/ h) | K26: [ - ]
F27: d1 = | G27: =G26*I22 -> 3 | K27: [cm]

Sheet SD_Linien
B2: (2) Spannungs-Dehnungslinien für ausgewählte Werkstoffe | J2: zurück | K2: weiter
D4: Spannungs-Dehnungslinie für | F4: und | H4: bei einer

Sheet SD_Verteilung
B2: (3) Dehnungs- und Spannungsverteilung über Querschnittshöhe infolge NEd und MEd
D4: Betongüte | F4: bei einer | J4: zurück | K4: weiter
B5: =CONCATENATE("Dehnungsverteilung für DZ = ",F18) -> Dehnungsverteilung für DZ = 58 | H5: zugehörige Beton-Spannungsverteilung (mit Resultierender)
F6: DZ
F7: 1 | G7: Rand (2)
G8: am normierten Querschnitt (h = 1,0 m)
F18: =Datenbasis!K17 -> 58
F19: 80 | G19: Rand (1)
C21: [ 0/00 ] | E21: [ 0/00 ] | G21: [kN/cm²] | I21: [kN/cm²] | K21: [m]
B22: ec2 = | C22: =Datenbasis!X124*1000 -> -3.5 | D22: es2 = | E22: =Datenbasis!X7*1000 -> -3.281464531 | F22: sc2 = | G22: =Datenbasis!Y124 -> -1.416666667 | H22: ss2(*) = | I22: =Datenbasis!Y7 -> -43.58374196 | J22: zRc = | K22: =Datenbasis!P44 -> -0.1668816869
B23: ec1 = | C23: =Datenbasis!X125*1000 -> 0.8707093822 | D23: es1 = | E23: =Datenbasis!X18*1000 -> 0.652173913 | F23: sc1 = | G23: =Datenbasis!Y125 -> 0 | H23: ss1(*) = | I23: =Datenbasis!Y18 -> 13.04347826 | J23: (*) = | K23: ggf. abzügl. sc

Sheet MNID
B2: (4) M-N-Interaktionsdiagramme für ausgewählten Querschnitt | J2: zurück
B3: Bemessungssituation | D3: =Datenbasis!F7 -> Grundkombination | F3: Querschnitt | G3: =Datenbasis!L6 -> Rechteck mit As1 = As2 | I3: =CONCATENATE("(" & Datenbasis!G4 & ")") -> (Beton-Bruttoquerschnitt)
A5: =Dateneingabe!D2 ->  | H5: Betongüte | I5: =Datenbasis!B61 -> C 25/30
I6: =CONCATENATE("f_ yd = ",ROUND(10*Datenbasis!G61,3)) -> f_ yd = 14,167 | J6: [MN/m²]
H7: Bewehrung | I7: =Datenbasis!E14 -> B 500 SA | J7: =Datenbasis!F14 -> ftd > fyd
I8: fyd / fcd = | J8: =Datenbasis!E16/Datenbasis!G61 -> 30.69053708
H9: Abmessung | I9: =CONCATENATE("b / h = " & Dateneingabe!G22 & " cm / " & Dateneingabe!I22 & " cm") -> b / h = 40 cm / 60 cm
I10: =CONCATENATE("b0 / h0 = " & Dateneingabe!G23 & " cm / " & Dateneingabe!I23 & " cm") -> b0 / h0 = 0 cm / 0 cm
H11: Bew.-lage | I11: d1 / h = d2 / h = | J11: =Datenbasis!P6 -> 0.05 | K11: 1
H12: =CONCATENATE("Dehnungen bei interp. DZ = ", ROUND(Datenbasis!G104,1)) -> Dehnungen bei interp. DZ = 58,4
H13: ec2 = | I13: =Datenbasis!G107 -> -3.5 | J13: [o/oo]
H14: es2 = | I14: =Datenbasis!G108 -> -3.286595081 | J14: [o/oo]
H15: es1 = | I15: =Datenbasis!G109 -> 0.5546934528 | J15: [o/oo]
H16: ec1 = | I16: =Datenbasis!G110 -> 0.7680983713 | J16: [o/oo]
H17: Bemessungsschnittgrößen
H18: NEd = | I18: =Datenbasis!C103 -> -4000 | J18: [kN]
H19: MEd = | I19: =Datenbasis!C104 -> 1000 | J19: [kNm]
H20: Bemessung
H21: =IF(OR(I24>2,I24<0),"nicht zulässig","") ->  | K21: =Datenbasis!K17 -> 58
H22: nEd = | I22: =Datenbasis!C105 -> -1.176470588 | J22: [ - ] | K22: 80
H23: mEd = | I23: =Datenbasis!C106 -> 0.4901960784 | J23: [ - ]
H24: wtot = | I24: =Datenbasis!G103 -> 1.364321071 | J24: =CONCATENATE("[ - ] bei DZ = ", ROUND(Datenbasis!G104,1)) -> [ - ] bei DZ = 58,4
H25: erf As,tot = | I25: =I24*Datenbasis!C107/J8 -> 106.6899077 | J25: =IF(Datenbasis!J6=1, "[cm²] = As1 + As2","[cm²]") -> [cm²] = As1 + As2

Sheet Datenbasis
B2: Betonart | C2: Stahllinie | D2: Druckstauchung bei geringer Ausmitte | G2: Netto-Beton | J2: außen | K2: [cm] | L2: innen | M2: [cm] | O2: Bew.-Lage | P2: Einheits-Querschn. [cm] | S2: =INDEX(Datenbasis!J10:J14,J6) -> Rechteck mit As1 = As2
B3: 1 | C3: =IF(C5,1,2) -> 2 | D3: =IF(B3=2,2,IF(D5,1,2)) -> 1 | G3: =IF(G5,1,0) -> 0 | J3: h = | K3: =Dateneingabe!I22 -> 60 | L3: h0 = | M3: =Dateneingabe!I23 -> 0 | O3: h = | P3: =Q4-Q3 -> 100 | Q3: -50 | S3: eps_0 = | T3: =L17 -> -0.001314645309 | U3: kappa = | V3: =M17 -> 0.004370709382 | W3: d1/h = | X3: =P4/GDicke -> 0.05 | Y3: As,tot = | Z3: =Q17 -> 423.5833333
B4: Normalb. = 1 | C4: Lin. I/II = 1/2 | D4: nur bei Normalbeton und ed / h <=0,1 | G4: =IF(G5,"Beton-Nettoquerschnitt","Beton-Bruttoquerschnitt") -> Beton-Bruttoquerschnitt | J4: b = | K4: =Dateneingabe!G22 -> 40 | L4: b0 = | M4: =Dateneingabe!G23 -> 0 | O4: d1 = d2 = | P4: =Dateneingabe!G26*GDicke -> 5 | Q4: 50 | X4: =X18 -> 0.000652173913 | Y4: =SDStahl(X4,$H$16,$H$14,$E$16,$F$16) -> 13.04347826
B5: Leichtb. = 2 | C5: FALSE | D5: TRUE | E5: zugel.=1; nicht zugel.=2 | G5: FALSE | J5: h0 / h = | K5: =M3/K3 -> 0 | L5: b0 / b = | M5: =M4/K4 -> 0 | O5: d = | P5: =GDicke-P4 -> 95 | S5: Stahlfasern | T5: =Datenbasis!M8 -> 2 | U5: [cm²] | W5: [cm²] | X5: [o/oo] | Y5: [kN/cm²] | Z5: [kN] | AA5: [kNm] | AC5: Kreisquerschnitt (Hilfsrechnung) | AF5: 2*12 Eisen | AG5: gesAs / 12
J6: 1 | L6: =J8 -> Rechteck mit As1 = As2 | O6: d1 / h = | P6: =P4/GDicke -> 0.05 | S6: j | T6: z(i) [m] | U6: As(i) | V6: z(i) [m] | W6: As(i) | X6: epss(j) | Y6: sigms(i) | Z6: ns(i) | AA6: ms(i) | AC6: i | AD6: Winkel | AE6: alfa [BM] | AF6: z(i) [m] | AG6: As(i)
B7: 1 | C7: Kombinationsauswahl | F7: =INDEX(B11:B12,B7) -> Grundkombination | J7: Auswahl: Querschnitt | L7: Layer | M7: Bewehrung | N7: A / (b * h ) | O7: A [cm²] | P7: Hinweis | Q7: Bild | S7: 1 | T7: =(ROben+$P$4)/100 -> -0.45 | U7: =IF($T$5=2,$Z$3/2,$Z$3/4) -> 211.7916667 | V7: =IF($J$6>2,AF7,T7) -> -0.45 | W7: =IF($J$6>2,AG7,U7) -> 211.7916667 | X7: =$T$3+T7*$V$3 -> -0.003281464531 | Y7: =IF($G$3=0,SDStahl(X7,$H$16,$H$14,$E$16,$F$16),SDStahl(X7,$H$16,$H$14,$E$16,$F$16)-SDBeton(X7,$D$23/1000,$G$23,$F$23)) -> -43.58374196 | Z7: =W7*Y7 -> -9230.67335 | AA7: =Z7*V7 -> 4153.803008 | AC7: 1 | AD7: 7.5 | AE7: =-COS(AD7*PI()/180) -> -0.9914448614 | AF7: =(GDicke/2-$P$4)*AE7/100 -> -0.4461501876 | AG7: =$Z$3/12 -> 35.29861111
B8: Kombination | E8: gam_c | F8: gam_s | J8: =INDEX(J10:J14,$J$6) -> Rechteck mit As1 = As2 | L8: =INDEX(L10:L14,$J$6) -> 100 | M8: =INDEX(M10:M14,$J$6) -> 2 | N8: =INDEX(N10:N14,$J$6) -> 1 | O8: 2400 | Q8: =INDEX(Q10:Q14,$J$6) -> QGrafik1 | S8: 2 | T8: =$T$7+(GDicke-2*$P$4)/2000 -> -0.405 | U8: =IF($T$5=2,0,$Z$3/20) -> 0 | V8: =IF($J$6>2,AF8,T8) -> -0.405 | W8: =IF($J$6>2,AG8,U8) -> 0 | X8: =$T$3+T8*$V$3 -> -0.003084782609 | Y8: =SDStahl(X8,$H$16,$H$14,$E$16,$F$16) -> -43.56501035 | Z8: =W8*Y8 -> 0 | AA8: =Z8*V8 -> 0 | AC8: 2 | AD8: =AD7+15 -> 22.5 | AE8: =-COS(AD8*PI()/180) -> -0.9238795325 | AF8: =(GDicke/2-$P$4)*AE8/100 -> -0.4157457896 | AG8: =$Z$3/12 -> 35.29861111
E9: =INDEX(E11:E12,$B$7) -> 1.5 | F9: =INDEX(F11:F12,$B$7) -> 1.15 | L9: Layer | M9: Bewehrung | N9: A / (b * h ) | O9: A [cm²] | P9: Hinweis | Q9: Bild | S9: 3 | T9: =$T$7+(GDicke-2*$P$4)/2000*3 -> -0.315 | U9: =$U$8 -> 0 | V9: -0.315 | W9: 0 | X9: -0.002691418764 | Y9: -43.52754713 | Z9: 0 | AA9: 0 | AC9: 3 | AD9: =AD8+15 -> 37.5 | AE9: -0.7933533403 | AF9: -0.3570090031 | AG9: 35.29861111
B10: Kombination | E10: gam_c | F10: gam_s | J10: Rechteck mit As1 = As2 | L10: 100 | M10: 2 | N10: =O10/$K$3/$K$4 -> 1 | O10: =$K$3*$K$4-$M$3*$M$4 -> 2400 | P10: ="" ->  | Q10: QGrafik1 | S10: 4 | T10: =$T$7+(GDicke-2*$P$4)/2000*5 -> -0.225 | U10: 0 | V10: -0.225 | W10: 0 | X10: -0.00229805492 | Y10: -43.49008391 | Z10: 0 | AA10: 0 | AC10: 4 | AD10: 52.5 | AE10: -0.608761429 | AF10: -0.2739426431 | AG10: 35.29861111
B11: Grundkombination | E11: 1.5 | F11: 1.15 | J11: I- / H-Profil mit As1 = As2 | L11: 100 | M11: 2 | N11: =O11/$K$3/$K$4 -> 1 | O11: =$K$3*$K$4-$M$3*$M$4 -> 2400 | P11: <-- Eingabe ! | Q11: QGrafik2 | S11: 5 | T11: =$T$7+(GDicke-2*$P$4)/2000*7 -> -0.135 | U11: 0 | V11: -0.135 | W11: 0 | X11: -0.001904691076 | Y11: -38.09382151 | Z11: 0 | AA11: 0 | AC11: 5 | AD11: 67.5 | AE11: -0.3826834324 | AF11: -0.1722075446 | AG11: 35.29861111
B12: Außergewöhnliche Kombination | E12: 1.3 | F12: 1 | J12: Hohlprofil mit umlfd. As,tot | L12: 100 | M12: 12 | N12: 1 | O12: 2400 | P12: <-- Eingabe ! | Q12: QGrafik3 | S12: 6 | T12: =$T$7+(GDicke-2*$P$4)/2000*9 -> -0.045 | U12: 0 | V12: -0.045 | W12: 0 | X12: -0.001511327231 | Y12: -30.22654462 | Z12: 0 | AA12: 0 | AC12: 6 | AD12: 82.5 | AE12: -0.1305261922 | AF12: -0.0587367865 | AG12: 35.29861111
J13: Rechteck mit umlfd. As,tot | L13: 100 | M13: 12 | N13: 1 | O13: 2400 | P13: ="" ->  | Q13: QGrafik3 | S13: 7 | T13: =$T$7+(GDicke-2*$P$4)/2000*11 -> 0.045 | U13: 0 | V13: 0.045 | W13: 0 | X13: -0.001117963387 | Y13: -22.35926773 | Z13: 0 | AA13: 0 | AC13: 7 | AD13: 97.5 | AE13: 0.1305261922 | AF13: 0.0587367865 | AG13: 35.29861111
B14: 1 | C14: Stahlparameter | E14: =INDEX(B18:B19,B14) -> B 500 SA | F14: =IF(C3=2,"ftd > fyd","fyd = ftd") -> ftd > fyd | G14: 20000 | H14: 0.025 | J14: Ellipsoid mit umlfd. As,tot | L14: 100 | M14: 12 | N14: 0.7853981634 | O14: =PI()/4*($K$3*$K$4-$M$3*$M$4) -> 1884.955592 | P14: <-- Eingabe ! | Q14: QGrafik4 | S14: 8 | T14: =$T$7+(GDicke-2*$P$4)/2000*13 -> 0.135 | U14: 0 | V14: 0.135 | W14: 0 | X14: -0.0007245995423 | Y14: -14.49199085 | Z14: 0 | AA14: 0 | AC14: 8 | AD14: 112.5 | AE14: 0.3826834324 | AF14: 0.1722075446 | AG14: 35.29861111
B15: Stahlgüte | C15: f_yk | D15: f_tk | E15: f_yd | F15: f_td | G15: eps_yk | H15: eps_yd | S15: 9 | T15: =$T$7+(GDicke-2*$P$4)/2000*15 -> 0.225 | U15: 0 | V15: 0.225 | W15: 0 | X15: -0.0003312356979 | Y15: -6.624713959 | Z15: 0 | AA15: 0 | AC15: 9 | AD15: 127.5 | AE15: 0.608761429 | AF15: 0.2739426431 | AG15: 35.29861111
C16: =INDEX(C18:C19,$B$14) -> 50 | D16: =INDEX(D18:D19,$B$14) -> 52.5 | E16: =INDEX(E18:E19,$B$14) -> 43.47826087 | F16: =IF(C3=2,INDEX(F18:F19,$B$14),E16) -> 45.65217391 | G16: =INDEX(G18:G19,$B$14) -> 0.0025 | H16: =INDEX(H18:H19,$B$14) -> 0.002173913043 | J16: Koeffizienten | L16: eps_0 | M16: kappa | O16: 14 | P16: Bewehrungsgrad | S16: 10 | T16: =$T$7+(GDicke-2*$P$4)/2000*17 -> 0.315 | U16: 0 | V16: 0.315 | W16: 0 | X16: 6.212814645e-05 | Y16: 1.242562929 | Z16: 0 | AA16: 0 | AC16: 10 | AD16: 142.5 | AE16: 0.7933533403 | AF16: 0.3570090031 | AG16: 35.29861111
B17: Stahlgüte | C17: f_yk | D17: f_tk | E17: f_yd | F17: f_td | G17: eps_yk | H17: eps_yd | K17: 58 | L17: =L19/1000-M17*ROben/100 -> -0.001314645309 | M17: =(M19-L19)/P5/10 -> 0.004370709382 | P17: =INDEX(P19:P39,$O$16) -> 0.04235833333 | Q17: =INDEX(Q19:Q39,$O$16) -> 423.5833333 | S17: 11 | T17: =$T$7+(GDicke-2*$P$4)/2000*19 -> 0.405 | U17: 0 | V17: 0.405 | W17: 0 | X17: 0.0004554919908 | Y17: 9.109839817 | Z17: 0 | AA17: 0 | AC17: 11 | AD17: 157.5 | AE17: 0.9238795325 | AF17: 0.4157457896 | AG17: 35.29861111
B18: B 500 SA | C18: 50 | D18: 52.5 | E18: =C18/F9 -> 43.47826087 | F18: =D18/F9 -> 45.65217391 | G18: =C18/G14 -> 0.0025 | H18: =E18/G14 -> 0.002173913043 | J18: eps_c1 | L18: eps_c2 | M18: eps_s1 | O18: omega | P18: mue | Q18: As,tot [cm²] | S18: 12 | T18: =(RUnten-$P$4)/100 -> 0.45 | U18: =$U$7 -> 211.7916667 | V18: 0.45 | W18: 211.7916667 | X18: 0.000652173913 | Y18: 13.04347826 | Z18: 2762.5 | AA18: 1243.125 | AC18: 12 | AD18: 172.5 | AE18: 0.9914448614 | AF18: 0.4461501876 | AG18: 35.29861111
B19: B 500 MA | C19: 50 | D19: 52.5 | E19: =C19/F9 -> 43.47826087 | F19: =D19/F9 -> 45.65217391 | G19: =C19/G14 -> 0.0025 | H19: =E19/G14 -> 0.002173913043 | J19: =(L17+RUnten/100*M17)*1000 -> 0.8707093822 | L19: =INDEX(L21:L100,$K$17) -> -3.5 | M19: =INDEX(M21:M100,$K$17) -> 0.652173913 | O19: 0 | P19: =O19*$G$61/$E$16 -> 0 | Q19: =P19*$N$8*10000 -> 0 | T19: =SUM(T7:T18) -> -4.440892099e-16 | U19: =SUM(U7:U18) -> 423.5833333 | V19: =SUM(V7:V18) -> -4.440892099e-16 | W19: =SUM(W7:W18) -> 423.5833333 | Z19: =SUM(Z7:Z18) -> -6468.17335 | AA19: =SUM(AA7:AA18) -> 5396.928008 | AF19: =SUM(AF7:AF18) -> 0 | AG19: =SUM(AG7:AG18) -> 423.5833333
J20: Dehnungszustände | L20: eps_c2 | M20: eps_s1 | O20: 0.1 | P20: 0.003258333333 | Q20: 32.58333333 | X20: =X4 -> 0.000652173913 | Y20: =SDBeton(X20,$D$23/1000,$G$23,$F$23) -> 0
B21: 4 | C21: Parabel-Rechteck-Diagramm (Normalbeton) | G21: =INDEX(B25:B39,$B$21) -> C 25/30 | H21: 0.85 | J21: Bereich -1 | K21: 1 | L21: =M21 -> 25 | M21: =$M$33 -> 25 | O21: 0.2 | P21: 0.006516666667 | Q21: 65.16666667 | S21: Betonfasern | T21: re = Rechteckumriss | V21: el = Ellipsoid | X21: [o/oo] | Y21: [kN/cm²] | Z21: [kN] | AA21: [kNm]
B22: Betongüte | C22: f_ck | D22: eps_c2 | E22: eps_c2u | F22: n | G22: f_cd | K22: 2 | L22: =L21/2 -> 12.5 | M22: 25 | O22: 0.3 | P22: 0.009775 | Q22: 97.75 | S22: i | T22: z(i,re) [m] | U22: A(i,re) [m²] | V22: z(i,el) [m] | W22: A(i,el) [m²] | X22: epsb(i) | Y22: sigmb(i) | Z22: nb(i) | AA22: mb(i)
C23: =INDEX(C25:C39,$B$21) -> 25 | D23: =INDEX(D25:D39,$B$21) -> -2 | E23: =INDEX(E25:E39,$B$21) -> -3.5 | F23: =INDEX(F25:F39,$B$21) -> 2 | G23: =INDEX(G25:G39,$B$21) -> 1.416666667 | J23: Bereich 1-2 | K23: 3 | L23: 0 | M23: 25 | O23: 0.4 | P23: 0.01303333333 | Q23: 130.3333333 | S23: 1 | T23: -0.495 | U23: 0.01 | V23: -0.4940034485 | W23: 0.001329326163 | X23: =$T$3+$V$3*IF($J$6<5,T23,V23) -> -0.003478146453 | Y23: =SDBeton(X23,$D$23/1000,$G$23,$F$23) -> -1.416666667 | Z23: =Y23*IF($J$6<5,U23,W23)*10000 -> -141.6666667 | AA23: =Z23*IF($J$6<5,T23,V23) -> 70.125
B24: Betongüte | C24: f_ck | D24: eps_c2 | E24: eps_c2u | F24: n | G24: f_cd | J24: =L33/(K33-K23) -> -0.35 | K24: 4 | L24: =L23+$J$24 -> -0.35 | M24: 25 | O24: 0.5 | P24: 0.01629166667 | Q24: 162.9166667 | S24: 2 | T24: -0.485 | U24: 0.01 | V24: -0.4847226655 | W24: 0.00241920114 | X24: =$T$3+$V$3*IF($J$6<5,T24,V24) -> -0.003434439359 | Y24: =SDBeton(X24,$D$23/1000,$G$23,$F$23) -> -1.416666667 | Z24: =Y24*IF($J$6<5,U24,W24)*10000 -> -141.6666667 | AA24: =Z24*IF($J$6<5,T24,V24) -> 68.70833333
B25: C 12/15 | C25: 12 | D25: -2 | E25: -3.5 | F25: 2 | G25: =C25/10/$E$9*$H$21 -> 0.68 | K25: 5 | L25: -0.7 | M25: 25 | O25: 0.6 | P25: 0.01955 | Q25: 195.5 | S25: 3 | T25: -0.475 | U25: 0.01 | V25: -0.4748367996 | W25: 0.003116984103 | X25: -0.003390732265 | Y25: =SDBeton(X25,$D$23/1000,$G$23,$F$23) -> -1.416666667 | Z25: -141.6666667 | AA25: 67.29166667
B26: C 16/20 | C26: 16 | D26: -2 | E26: -3.5 | F26: 2 | G26: 0.9066666667 | K26: 6 | L26: -1.05 | M26: 25 | O26: 0.7 | P26: 0.02280833333 | Q26: 228.0833333 | S26: 4 | T26: -0.465 | U26: 0.01 | V26: -0.464884975 | W26: 0.003672226456 | X26: -0.003347025172 | Y26: =SDBeton(X26,$D$23/1000,$G$23,$F$23) -> -1.416666667 | Z26: -141.6666667 | AA26: 65.875
B27: C 20/25 | C27: 20 | D27: -2 | E27: -3.5 | F27: 2 | G27: 1.133333333 | K27: 7 | L27: -1.4 | M27: 25 | O27: 0.8 | P27: 0.02606666667 | Q27: 260.6666667 | S27: 5 | T27: -0.455 | U27: 0.01 | V27: -0.4549116305 | W27: 0.004143738859 | X27: -0.003303318078 | Y27: =SDBeton(X27,$D$23/1000,$G$23,$F$23) -> -1.416666667 | Z27: -141.6666667 | AA27: 64.45833333
B28: C 25/30 | C28: 25 | D28: -2 | E28: -3.5 | F28: 2 | G28: 1.416666667 | K28: 8 | L28: -1.75 | M28: 25 | O28: 0.9 | P28: 0.029325 | Q28: 293.25 | S28: 6 | T28: -0.445 | U28: 0.01 | V28: -0.4449285744 | W28: 0.0045578445 | X28: -0.003259610984 | Y28: -1.416666667 | Z28: -141.6666667 | AA28: 63.04166667
B29: C 30/37 | C29: 30 | D29: -2 | E29: -3.5 | F29: 2 | G29: 1.7 | K29: 9 | L29: -2.1 | M29: 25 | O29: 1 | P29: 0.03258333333 | Q29: 325.8333333 | S29: 7 | T29: -0.435 | U29: 0.01 | V29: -0.4349403066 | W29: 0.004929125289 | X29: -0.00321590389 | Y29: -1.416666667 | Z29: -141.6666667 | AA29: 61.625
B30: C 35/45 | C30: 35 | D30: -2 | E30: -3.5 | F30: 2 | G30: 1.983333333 | K30: 10 | L30: -2.45 | M30: 25 | O30: 1.1 | P30: 0.03584166667 | Q30: 358.4166667 | S30: 8 | T30: -0.425 | U30: 0.01 | V30: -0.424948918 | W30: 0.005266685881 | X30: -0.003172196796 | Y30: -1.416666667 | Z30: -141.6666667 | AA30: 60.20833333
B31: C 40/50 | C31: 40 | D31: -2 | E31: -3.5 | F31: 2 | G31: 2.266666667 | K31: 11 | L31: -2.8 | M31: 25 | O31: 1.2 | P31: 0.0391 | Q31: 391 | S31: 9 | T31: -0.415 | U31: 0.01 | V31: -0.4149555127 | W31: 0.005576672844 | X31: -0.003128489703 | Y31: -1.416666667 | Z31: -141.6666667 | AA31: 58.79166667
B32: C 45/55 | C32: 45 | D32: -2 | E32: -3.5 | F32: 2 | G32: 2.55 | K32: 12 | L32: -3.15 | M32: 25 | O32: 1.3 | P32: 0.04235833333 | Q32: 423.5833333 | S32: 10 | T32: -0.405 | U32: 0.01 | V32: -0.4049607289 | W32: 0.005863471965 | X32: -0.003084782609 | Y32: -1.416666667 | Z32: -141.6666667 | AA32: 57.375
B33: C 50/60 | C33: 50 | D33: -2 | E33: -3.5 | F33: 2 | G33: 2.833333333 | J33: Bereich 2-3 | K33: 13 | L33: =E61 -> -3.5 | M33: =H14*1000 -> 25 | O33: 1.4 | P33: 0.04561666667 | Q33: 456.1666667 | S33: 11 | T33: -0.395 | U33: 0.01 | V33: -0.3949649614 | W33: 0.006130344984 | X33: -0.003041075515 | Y33: -1.416666667 | Z33: -141.6666667 | AA33: 55.95833333
B34: C 55/67 | C34: 55 | D34: -2.2 | E34: -3.1 | F34: 1.75 | G34: 3.116666667 | J34: =(M33-M71)/(K71-K33) -> 0.6006864989 | K34: 14 | L34: =$L$33 -> -3.5 | M34: =M33-$J$34 -> 24.3993135 | O34: 1.5 | P34: 0.048875 | Q34: 488.75 | S34: 12 | T34: -0.385 | U34: 0.01 | V34: -0.3849684673 | W34: 0.006379797012 | X34: -0.002997368421 | Y34: -1.416666667 | Z34: -141.6666667 | AA34: 54.54166667
B35: C 60/75 | C35: 60 | D35: -2.3 | E35: -2.9 | F35: 1.6 | G35: 3.4 | K35: 15 | L35: -3.5 | M35: 23.798627 | O35: 1.6 | P35: 0.05213333333 | Q35: 521.3333333 | S35: 13 | T35: -0.375 | U35: 0.01 | V35: -0.3749714216 | W35: 0.006613802185 | X35: -0.002953661327 | Y35: -1.416666667 | Z35: -141.6666667 | AA35: 53.125
B36: C 70/85 | C36: 70 | D36: -2.4 | E36: -2.7 | F36: 1.45 | G36: 3.966666667 | K36: 16 | L36: -3.5 | M36: 23.1979405 | O36: 1.7 | P36: 0.05539166667 | Q36: 553.9166667 | S36: 14 | T36: -0.365 | U36: 0.01 | V36: -0.3649739472 | W36: 0.006833949261 | X36: -0.002909954233 | Y36: -1.416666667 | Z36: -141.6666667 | AA36: 51.70833333
B37: C 80/95 | C37: 80 | D37: -2.5 | E37: -2.6 | F37: 1.4 | G37: 4.533333333 | K37: 17 | L37: -3.5 | M37: 22.597254 | O37: 1.8 | P37: 0.05865 | Q37: 586.5 | S37: 15 | T37: -0.355 | U37: 0.01 | V37: -0.3549761331 | W37: 0.007041539406 | X37: -0.00286624714 | Y37: -1.416666667 | Z37: -141.6666667 | AA37: 50.29166667
B38: C 90/105 | C38: 90 | D38: -2.6 | E38: -2.6 | F38: 1.4 | G38: 5.1 | K38: 18 | L38: -3.5 | M38: 21.99656751 | O38: 1.9 | P38: 0.06190833333 | Q38: 619.0833333 | S38: 16 | T38: -0.345 | U38: 0.01 | V38: -0.3449780455 | W38: 0.007237654084 | X38: -0.002822540046 | Y38: -1.416666667 | Z38: -141.6666667 | AA38: 48.875
B39: C 100/115 | C39: 100 | D39: -2.6 | E39: -2.6 | F39: 1.4 | G39: 5.666666667 | K39: 19 | L39: -3.5 | M39: 21.39588101 | O39: 2 | P39: 0.06516666667 | Q39: 651.6666667 | S39: 17 | T39: -0.335 | U39: 0.01 | V39: -0.3349797344 | W39: 0.007423203542 | X39: -0.002778832952 | Y39: -1.416666667 | Z39: -141.6666667 | AA39: 47.45833333
K40: 20 | L40: -3.5 | M40: 20.79519451 | S40: 18 | T40: -0.325 | U40: 0.01 | V40: -0.3249812384 | W40: 0.007598962261 | X40: -0.002735125858 | Y40: -1.416666667 | Z40: -141.6666667 | AA40: 46.04166667
B41: 4 | C41: Parabel-Rechteck-Diagramm (Leichtbeton) | G41: =INDEX(B45:B57,$B$41) -> LC 25/28 | H41: 0.75 | K41: 21 | L41: -3.5 | M41: 20.19450801 | O41: Auswertung Betonfasern | S41: 19 | T41: -0.315 | U41: 0.01 | V41: -0.3149825877 | W41: 0.00776559544 | X41: -0.002691418764 | Y41: -1.416666667 | Z41: -141.6666667 | AA41: 44.625
B42: Betongüte | C42: f_ck | D42: eps_c2 | E42: eps_c2u | F42: n | G42: f_cd | H42: rho | K42: 22 | L42: -3.5 | M42: 19.59382151 | S42: 20 | T42: -0.305 | U42: 0.01 | V42: -0.3049838065 | W42: 0.007923679127 | X42: -0.00264771167 | Y42: -1.416666667 | Z42: -141.6666667 | AA42: 43.20833333
C43: =INDEX(C45:C57,$B$41) -> 25 | D43: -2 | E43: -2.640909091 | F43: 2 | G43: 1.25 | H43: 1300 | K43: 23 | L43: -3.5 | M43: 18.99313501 | O43: min sigm_c= | P43: =MIN(Y23:Y122) -> -1.416666667 | Q43: [kN/m²] | S43: 21 | T43: -0.295 | U43: 0.01 | V43: -0.2949849142 | W43: 0.008073715775 | X43: -0.002604004577 | Y43: -1.416666667 | Z43: -141.6666667 | AA43: 41.79166667
B44: Betongüte | C44: f_ck | D44: eps_c2 | E44: eps_c2u | F44: n | G44: f_cd | H44: rho | K44: 24 | L44: -3.5 | M44: 18.39244851 | O44: z_Rc = | P44: =IF(ISNUMBER(AA123/Z123),AA123/Z123,"undef.") -> -0.1668816869 | Q44: [m] | S44: 22 | T44: -0.285 | U44: 0.01 | V44: -0.2849859266 | W44: 0.008216146431 | X44: -0.002560297483 | Y44: -1.416666667 | Z44: -141.6666667 | AA44: 40.375
B45: LC 12/13 | C45: 12 | D45: -2 | E45: =-3.5*(0.4+0.6*H45/2200) -> -2.545454545 | F45: 2 | G45: =C45/10/$E$9*$H$41 -> 0.6 | H45: 1200 | K45: =K44+1 -> 25 | L45: -3.5 | M45: 17.79176201 | O45: R_c = | P45: =Z123 -> -9183.84919 | Q45: [kN] | S45: 23 | T45: -0.275 | U45: 0.01 | V45: -0.2749868566 | W45: 0.008351360415 | X45: -0.002516590389 | Y45: -1.416666667 | Z45: -141.6666667 | AA45: 38.95833333
B46: LC 16/18 | C46: 16 | D46: -2 | E46: =-3.5*(0.4+0.6*H46/2200) -> -2.545454545 | F46: 2 | G46: 0.8 | H46: 1200 | K46: 26 | L46: -3.5 | M46: 17.19107551 | O46: Hilfslinien in SD-Verteilung | S46: 24 | T46: -0.265 | U46: 0.01 | V46: -0.264987715 | W46: 0.008479703082 | X46: -0.002472883295 | Y46: -1.416666667 | Z46: -141.6666667 | AA46: 37.54166667
B47: LC 20/22 | C47: 20 | D47: -2 | E47: -2.640909091 | F47: 2 | G47: 1 | H47: 1300 | K47: 27 | L47: -3.5 | M47: 16.59038902 | P47: 0 | Q47: =P44 -> -0.1668816869 | S47: 25 | T47: -0.255 | U47: 0.01 | V47: -0.254988511 | W47: 0.008601482122 | X47: -0.002429176201 | Y47: -1.416666667 | Z47: -141.6666667 | AA47: 36.125
B48: LC 25/28 | C48: 25 | D48: -2 | E48: -2.640909091 | F48: 2 | G48: 1.25 | H48: 1300 | K48: 28 | L48: -3.5 | M48: 15.98970252 | P48: =0.75*P43 -> -1.0625 | Q48: =Q47 -> -0.1668816869 | S48: 26 | T48: -0.245 | U48: 0.01 | V48: -0.2449892521 | W48: 0.008716972714 | X48: -0.002385469108 | Y48: -1.416666667 | Z48: -141.6666667 | AA48: 34.70833333
B49: LC 30/33 | C49: 30 | D49: -2 | E49: -2.736363636 | F49: 2 | G49: 1.5 | H49: 1400 | K49: 29 | L49: -3.5 | M49: 15.38901602 | O49: am Einheitsquerschnitt | S49: 27 | T49: -0.235 | U49: 0.01 | V49: -0.2349899449 | W49: 0.008826421779 | X49: -0.002341762014 | Y49: -1.416666667 | Z49: -141.6666667 | AA49: 33.29166667
B50: LC 35/38 | C50: 35 | D50: -2 | E50: -2.831818182 | F50: 2 | G50: 1.75 | H50: 1500 | K50: 30 | L50: -3.5 | M50: 14.78832952 | O50: M_Ed = | P50: =AA129 -> 6929.544253 | Q50: [kNm] | S50: 28 | T50: -0.225 | U50: 0.01 | V50: -0.2249905949 | W50: 0.00893005152 | X50: -0.00229805492 | Y50: -1.416666667 | Z50: -141.6666667 | AA50: 31.875
B51: LC 40/44 | C51: 40 | D51: -2 | E51: -2.831818182 | F51: 2 | G51: 2 | H51: 1500 | K51: 31 | L51: -3.5 | M51: 14.18764302 | O51: N_Ed = | P51: =Z129 -> -15652.02254 | Q51: [kN] | S51: 29 | T51: -0.215 | U51: 0.01 | V51: -0.214991207 | W51: 0.009028062384 | X51: -0.002254347826 | Y51: -1.416666667 | Z51: -141.6666667 | AA51: 30.45833333
B52: LC 45/50 | C52: 45 | D52: -2 | E52: -2.927272727 | F52: 2 | G52: 2.25 | H52: 1600 | K52: 32 | L52: -3.5 | M52: 13.58695652 | O52: mue_Ed = | P52: =P50/P55/GDicke/G61*100 -> 0.4891443002 | Q52: [1] | S52: 30 | T52: -0.205 | U52: 0.01 | V52: -0.2049917853 | W52: 0.00912063556 | X52: -0.002210640732 | Y52: -1.416666667 | Z52: -141.6666667 | AA52: 29.04166667
B53: LC 50/55 | C53: 50 | D53: -2 | E53: -2.927272727 | F53: 2 | G53: 2.5 | H53: 1600 | K53: 33 | L53: -3.5 | M53: 12.98627002 | O53: nue_Ed = | P53: =P51/P55/G61 -> -1.10484865 | Q53: [1] | S53: 31 | T53: -0.195 | U53: 0.01 | V53: -0.1949923335 | W53: 0.009207935091 | X53: -0.002166933638 | Y53: -1.416666667 | Z53: -141.6666667 | AA53: 27.625
B54: LC 55/60 | C54: 55 | D54: -2.2 | E54: =-3.1*(0.4+0.6*H54/2200) -> -2.677272727 | F54: 1.75 | G54: 2.75 | H54: 1700 | K54: 34 | L54: -3.5 | M54: 12.38558352 | O54: omega_tot = | P54: =INDEX(O19:O39,O16) -> 1.3 | Q54: [1] | S54: 32 | T54: -0.185 | U54: 0.01 | V54: -0.1849928548 | W54: 0.00929010968 | X54: -0.002123226545 | Y54: -1.416666667 | Z54: -141.6666667 | AA54: 26.20833333
B55: LC 60/66 | C55: 60 | D55: -2.3 | E55: =-2.9*(0.4+0.6*H55/2200) -> -2.583636364 | F55: 1.6 | G55: 3 | H55: 1800 | K55: 35 | L55: -3.5 | M55: 11.78489703 | O55: A_c = | P55: =10000*IF(J6<5,U123,W123) -> 10000 | Q55: [cm²] | S55: 33 | T55: -0.175 | U55: 0.01 | V55: -0.1749933519 | W55: 0.009367294234 | X55: -0.002079519451 | Y55: -1.416666667 | Z55: -141.6666667 | AA55: 24.79166667
B56: LC 70/77 | C56: 70 | D56: -2.4 | E56: =-2.7*(0.4+0.6*H56/2200) -> -2.442272727 | F56: 1.45 | G56: 3.5 | H56: 1850 | K56: 36 | L56: -3.5 | M56: 11.18421053 | S56: 34 | T56: -0.165 | U56: 0.01 | V56: -0.1649938275 | W56: 0.009439611181 | X56: -0.002035812357 | Y56: -1.416666667 | Z56: -141.6666667 | AA56: 23.375
B57: LC 80/88 | C57: 80 | D57: -2.5 | E57: =-2.6*(0.4+0.6*H57/2200) -> -2.387272727 | F57: 1.4 | G57: 4 | H57: 1900 | K57: 37 | L57: -3.5 | M57: 10.58352403 | O57: Darstellung des Dehnungszustandes | S57: 35 | T57: -0.155 | U57: 0.01 | V57: -0.1549942837 | W57: 0.00950717162 | X57: -0.001992105263 | Y57: -1.416644593 | Z57: -141.6644593 | AA57: 21.95799118
K58: 38 | L58: -3.5 | M58: 9.982837529 | O58: im M-N-Interaktionsdiagr. | Q58: =K17 -> 58 | S58: 36 | T58: -0.145 | U58: 0.01 | V58: -0.1449947226 | W58: 0.009570076308 | X58: -0.001948398169 | Y58: -1.41572361 | Z58: -141.572361 | AA58: 20.52799234
B59: =B3 -> 1 | C59: Betonart (Normal = 1; Leicht = 2) | H59: ed/h<=0,1 | K59: 39 | L59: -3.5 | M59: 9.38215103 | P59: Punkt A | Q59: Punkt B | S59: 37 | T59: -0.135 | U59: 0.01 | V59: -0.1349951459 | W59: 0.009628416511 | X59: -0.001904691076 | Y59: -1.413449491 | Z59: -141.3449491 | AA59: 19.08156812
B60: Betonart | C60: fck | D60: epsc2 | E60: epsc2u | F60: n | G60: fcd | H60: epsc2 * | K60: 40 | L60: -3.5 | M60: 8.781464531 | O60: mue_cd = | P60: =INDEX(Speicherung!E12:E91,Q58) -> 0.1081846761 | Q60: =INDEX(Speicherung!AS12:AS91,Q58) -> 0.6942764054 | S60: 38 | T60: -0.125 | U60: 0.01 | V60: -0.1249955553 | W60: 0.009682274754 | X60: -0.001860983982 | Y60: -1.409822235 | Z60: -140.9822235 | AA60: 17.62277794
B61: =IF(B3=1,G21,G41) -> C 25/30 | C61: =IF($B$3=1,C23,C43) -> 25 | D61: =IF($B$3=1,D23,D43) -> -2 | E61: =IF($B$3=1,E23,E43) -> -3.5 | F61: =IF($B$3=1,F23,F43) -> 2 | G61: =IF($B$3=1,G23,G43) -> 1.416666667 | H61: =IF(D3=1,-E16*1000/G14,D61) -> -2.173913043 | K61: 41 | L61: -3.5 | M61: 8.180778032 | O61: nue_cd = | P61: =INDEX(Speicherung!F12:F91,Q58) -> -0.6482717075 | Q61: =INDEX(Speicherung!AT12:AT91,Q58) -> -1.350697773 | S61: 39 | T61: -0.115 | U61: 0.01 | V61: -0.1149959523 | W61: 0.009731725461 | X61: -0.001817276888 | Y61: -1.404841844 | Z61: -140.4841844 | AA61: 16.1556812
B62: Wertepaare für Darstellung der Spannungs-Dehnungsbeziehung | G62: Hilfslinien für SD-Linien | K62: 42 | L62: -3.5 | M62: 7.580091533 | O62: tot omega = | P62: 0 | Q62: 2 | S62: 40 | T62: -0.105 | U62: 0.01 | V62: -0.1049963383 | W62: 0.009776835523 | X62: -0.001773569794 | Y62: -1.398508316 | Z62: -139.8508316 | AA62: 14.68433731
B63: Param | C63: epsc | D63: sigmcd | E63: sigmck | G63: epsc | H63: sigmc | K63: 43 | L63: -3.5 | M63: 6.979405034 | O63: Daten werden aus TB "Speicherung" | S63: 41 | T63: -0.095 | U63: 0.01 | V63: -0.09499671457 | W63: 0.009817664783 | X63: -0.0017298627 | Y63: -1.390821651 | Z63: -139.0821651 | AA63: 13.21280569
B64: 0 | C64: 0 | D64: =-(1-(1-C64/$D$61)^$F$61)*$G$61 -> 0 | E64: =-(1-(1-C64/$D$61)^$F$61)*$C$61/10 -> 0 | G64: =$D$61 -> -2 | H64: 0 | K64: 44 | L64: -3.5 | M64: 6.378718535 | O64: übernommen | S64: 42 | T64: -0.085 | U64: 0.01 | V64: -0.0849970822 | W64: 0.009854266459 | X64: -0.001686155606 | Y64: -1.381781851 | Z64: -138.1781851 | AA64: 11.74514573
B65: 1 | C65: =C64+$D$61/20 -> -0.1 | D65: -0.138125 | E65: -0.24375 | G65: =$D$61 -> -2 | H65: =-G61 -> -1.416666667 | K65: 45 | L65: -3.5 | M65: 5.778032037 | S65: 43 | T65: -0.075 | U65: 0.01 | V65: -0.07499744233 | W65: 0.00988668751 | X65: -0.001642448513 | Y65: -1.371388914 | Z65: -137.1388914 | AA65: 10.28541686
B66: 2 | C66: -0.2 | D66: -0.2691666667 | E66: -0.475 | G66: =$D$61 -> -2 | H66: =-C61/10 -> -2.5 | K66: 46 | L66: =$L$33 -> -3.5 | M66: 5.177345538 | O66: Ablesehilfen | P66: Fadenkreuz im MNID | S66: 44 | T66: -0.065 | U66: 0.01 | V66: -0.06499779598 | W66: 0.009914968953 | X66: -0.001598741419 | Y66: -1.359642841 | Z66: -135.9642841 | AA66: 8.837678466
B67: 3 | C67: -0.3 | D67: -0.393125 | E67: -0.69375 | K67: 47 | L67: -3.5 | M67: 4.576659039 | O67: mue_Ed | P67: =C106 -> 0.4901960784 | Q67: 2.2 | S67: 45 | T67: -0.055 | U67: 0.01 | V67: -0.05499814412 | W67: 0.009939146131 | X67: -0.001555034325 | Y67: -1.346543632 | Z67: -134.6543632 | AA67: 7.405989974
B68: 4 | C68: -0.4 | D68: -0.51 | E68: -0.9 | G68: =$E$61 -> -3.5 | H68: 0 | K68: 48 | L68: -3.5 | M68: 3.97597254 | O68: senkrecht | P68: =P67 -> 0.4901960784 | Q68: -3 | S68: 46 | T68: -0.045 | U68: 0.01 | V68: -0.04499848768 | W68: 0.009959248939 | X68: -0.001511327231 | Y68: -1.332091286 | Z68: -133.2091286 | AA68: 5.994410787
B69: 5 | C69: -0.5 | D69: -0.6197916667 | E69: -1.09375 | G69: =$E$61 -> -3.5 | H69: =-G61 -> -1.416666667 | K69: 49 | L69: -3.5 | M69: 3.375286041 | O69: Skalierfaktor | P69: 1.06 | S69: 47 | T69: -0.035 | U69: 0.01 | V69: -0.03499882753 | W69: 0.009975302012 | X69: -0.001467620137 | Y69: -1.316285804 | Z69: -131.6285804 | AA69: 4.607000314
B70: 6 | C70: -0.6 | D70: -0.7225 | E70: -1.275 | G70: =$E$61 -> -3.5 | H70: =-C61/10 -> -2.5 | K70: 50 | L70: -3.5 | M70: 2.774599542 | S70: 48 | T70: -0.025 | U70: 0.01 | V70: -0.02499916454 | W70: 0.009987324882 | X70: -0.001423913043 | Y70: -1.299127186 | Z70: -129.9127186 | AA70: 3.247817964
B71: 7 | C71: -0.7 | D71: -0.818125 | E71: -1.44375 | J71: Bereich 3-4 | K71: 51 | L71: -3.5 | M71: =H16*1000 -> 2.173913043 | O71: nue_Ed | P71: 0 | Q71: =C105 -> -1.176470588 | S71: 49 | T71: -0.015 | U71: 0.01 | V71: -0.01499949953 | W71: 0.009995332093 | X71: -0.00138020595 | Y71: -1.280615431 | Z71: -128.0615431 | AA71: 1.920923147
B72: 8 | C72: -0.8 | D72: -0.9066666667 | E72: -1.6 | J72: =M71/10 -> 0.2173913043 | K72: 52 | L72: -3.5 | M72: =M71-$J$72 -> 1.956521739 | O72: waagerecht | P72: 1.06 | Q72: =Q71 -> -1.176470588 | S72: 50 | T72: -0.005 | U72: 0.01 | V72: -0.004999833309 | W72: 0.009999333293 | X72: -0.001336498856 | Y72: -1.26075054 | Z72: -126.075054 | AA72: 0.6303752702
B73: 9 | C73: -0.9 | D73: -0.988125 | E73: -1.74375 | G73: SD für sigm_yk | K73: 53 | L73: -3.5 | M73: 1.739130435 | S73: 51 | T73: 0.005 | U73: 0.01 | V73: 0.004999833309 | W73: 0.009999333293 | X73: -0.001292791762 | Y73: -1.239532513 | Z73: -123.9532513 | AA73: -0.6197662566
B74: 10 | C74: -1 | D74: -1.0625 | E74: -1.875 | G74: epss | H74: sigms | K74: 54 | L74: -3.5 | M74: 1.52173913 | S74: 52 | T74: 0.015 | U74: 0.01 | V74: 0.01499949953 | W74: 0.009995332093 | X74: -0.001249084668 | Y74: -1.21696135 | Z74: -121.696135 | AA74: -1.825442025
B75: 11 | C75: -1.1 | D75: -1.129791667 | E75: -1.99375 | G75: 0 | H75: 0 | K75: 55 | L75: -3.5 | M75: 1.304347826 | O75: Auswertung Stahlfasern | S75: 53 | T75: 0.025 | U75: 0.01 | V75: 0.02499916454 | W75: 0.009987324882 | X75: -0.001205377574 | Y75: -1.19303705 | Z75: -119.303705 | AA75: -2.982592626
B76: 12 | C76: -1.2 | D76: -1.19 | E76: -2.1 | G76: =G16 -> 0.0025 | H76: =C16 -> 50 | K76: 56 | L76: -3.5 | M76: 1.086956522 | O76: Hilfslinien in SD-Verteilung | S76: 54 | T76: 0.035 | U76: 0.01 | V76: 0.03499882753 | W76: 0.009975302012 | X76: -0.001161670481 | Y76: -1.167759614 | Z76: -116.7759614 | AA76: -4.08715865
B77: 13 | C77: -1.3 | D77: -1.243125 | E77: -2.19375 | G77: =H14 -> 0.025 | H77: =D16 -> 52.5 | K77: 57 | L77: -3.5 | M77: 0.8695652174 | O77: Faser 1 | P77: 0 | Q77: =T7 -> -0.45 | S77: 55 | T77: 0.045 | U77: 0.01 | V77: 0.04499848768 | W77: 0.009959248939 | X77: -0.001117963387 | Y77: -1.141129042 | Z77: -114.1129042 | AA77: -5.135080689
B78: 14 | C78: -1.4 | D78: -1.289166667 | E78: -2.275 | K78: 58 | L78: -3.5 | M78: 0.652173913 | P78: =IF(U7>0,X7,0) -> -0.003281464531 | Q78: =Q77 -> -0.45 | S78: 56 | T78: 0.055 | U78: 0.01 | V78: 0.05499814412 | W78: 0.009939146131 | X78: -0.001074256293 | Y78: -1.113145334 | Z78: -111.3145334 | AA78: -6.122299334
B79: 15 | C79: -1.5 | D79: -1.328125 | E79: -2.34375 | G79: SD für sigm_yd | K79: 59 | L79: -3.5 | M79: 0.4347826087 | O79: Faser 2 | P79: 0 | Q79: =T8 -> -0.405 | S79: 57 | T79: 0.065 | U79: 0.01 | V79: 0.06499779598 | W79: 0.009914968953 | X79: -0.001030549199 | Y79: -1.083808489 | Z79: -108.3808489 | AA79: -7.044755177
B80: 16 | C80: -1.6 | D80: -1.36 | E80: -2.4 | G80: epss | H80: sigms | K80: 60 | L80: -3.5 | M80: 0.2173913043 | P80: =IF(U8>0,X8,0) -> 0 | Q80: =Q79 -> -0.405 | S80: 58 | T80: 0.075 | U80: 0.01 | V80: 0.07499744233 | W80: 0.00988668751 | X80: -0.0009868421053 | Y80: -1.053118508 | Z80: -105.3118508 | AA80: -7.898388807
B81: 17 | C81: -1.7 | D81: -1.384791667 | E81: -2.44375 | G81: 0 | H81: 0 | J81: Bereich 4-4a | K81: 61 | L81: -3.5 | M81: 0 | O81: Faser 3 | P81: 0 | Q81: =T9 -> -0.315 | S81: 59 | T81: 0.085 | U81: 0.01 | V81: 0.0849970822 | W81: 0.009854266459 | X81: -0.0009431350114 | Y81: -1.02107539 | Z81: -102.107539 | AA81: -8.679140817
B82: 18 | C82: -1.8 | D82: -1.4025 | E82: -2.475 | G82: =H16 -> 0.002173913043 | H82: =E16 -> 43.47826087 | J82: =M85/4 -> -0.04375 | K82: 62 | L82: -3.5 | M82: =M81+$J$82 -> -0.04375 | P82: =IF(U9>0,X9,0) -> 0 | Q82: =Q81 -> -0.315 | S82: 60 | T82: 0.095 | U82: 0.01 | V82: 0.09499671457 | W82: 0.009817664783 | X82: -0.0008994279176 | Y82: -0.9876791366 | Z82: -98.76791366 | AA82: -9.382951797
B83: 19 | C83: -1.9 | D83: -1.413125 | E83: -2.49375 | G83: =H14 -> 0.025 | H83: =F16 -> 45.65217391 | K83: 63 | L83: -3.5 | M83: =M82+$J$82 -> -0.0875 | O83: Faser 4 | P83: 0 | Q83: =T10 -> -0.225 | S83: 61 | T83: 0.105 | U83: 0.01 | V83: 0.1049963383 | W83: 0.009776835523 | X83: -0.0008557208238 | Y83: -0.9529297466 | Z83: -95.29297466 | AA83: -10.00576234
B84: 20 | C84: -2 | D84: =-$G$61 -> -1.416666667 | E84: =-$C$61/10 -> -2.5 | K84: 64 | L84: -3.5 | M84: =M83+$J$82 -> -0.13125 | P84: =IF(U10>0,X10,0) -> 0 | Q84: =Q83 -> -0.225 | S84: 62 | T84: 0.115 | U84: 0.01 | V84: 0.1149959523 | W84: 0.009731725461 | X84: -0.00081201373 | Y84: -0.9168272204 | Z84: -91.68272204 | AA84: -10.54351303
B85: 21 | C85: =C84+($E$61-$D$61)/15 -> -2.1 | D85: -1.416666667 | E85: -2.5 | G85: Hilfslinien für SD - Stahl | J85: Bereich 4a-5 | K85: 65 | L85: -3.5 | M85: =L85*Dateneingabe!G26 -> -0.175 | O85: Faser 5 | P85: 0 | Q85: =T11 -> -0.135 | S85: 63 | T85: 0.125 | U85: 0.01 | V85: 0.1249955553 | W85: 0.009682274754 | X85: -0.0007683066362 | Y85: -0.8793715579 | Z85: -87.93715579 | AA85: -10.99214447
B86: 22 | C86: -2.2 | D86: -1.416666667 | E86: -2.5 | G86: epss | H86: sigms | J86: =(M100-M85)/15 -> -0.1332608696 | K86: 66 | L86: =($H$61-M86)*$J$87/($P$5-$J$87)+$H$61 -> -3.411594203 | M86: =M85+$J$86 -> -0.3082608696 | P86: =IF(U11>0,X11,0) -> 0 | Q86: =Q85 -> -0.135 | S86: 64 | T86: 0.135 | U86: 0.01 | V86: 0.1349951459 | W86: 0.009628416511 | X86: -0.0007245995423 | Y86: -0.840562759 | Z86: -84.0562759 | AA86: -11.34759725
B87: 23 | C87: -2.3 | D87: -1.416666667 | E87: -2.5 | G87: =H16 -> 0.002173913043 | H87: 0 | J87: =(E61-H61)/E61*100 -> 37.88819876 | K87: 67 | L87: -3.323188406 | M87: -0.4415217391 | O87: Faser 6 | P87: 0 | Q87: =T12 -> -0.045 | S87: 65 | T87: 0.145 | U87: 0.01 | V87: 0.1449947226 | W87: 0.009570076308 | X87: -0.0006808924485 | Y87: -0.8004008239 | Z87: -80.04008239 | AA87: -11.60581195
B88: 24 | C88: -2.4 | D88: -1.416666667 | E88: -2.5 | G88: =H16 -> 0.002173913043 | H88: =E16 -> 43.47826087 | K88: 68 | L88: -3.234782609 | M88: -0.5747826087 | P88: =IF(U12>0,X12,0) -> 0 | Q88: =Q87 -> -0.045 | S88: 66 | T88: 0.155 | U88: 0.01 | V88: 0.1549942837 | W88: 0.00950717162 | X88: =$T$3+$V$3*IF($J$6<5,T88,V88) -> -0.0006371853547 | Y88: -0.7588857526 | Z88: =Y88*IF($J$6<5,U88,W88)*10000 -> -75.88857526 | AA88: =Z88*IF($J$6<5,T88,V88) -> -11.76272916
B89: 25 | C89: -2.5 | D89: -1.416666667 | E89: -2.5 | K89: 69 | L89: -3.146376812 | M89: -0.7080434783 | O89: Faser 7 | P89: 0 | Q89: =T13 -> 0.045 | S89: 67 | T89: 0.165 | U89: 0.01 | V89: 0.1649938275 | W89: 0.009439611181 | X89: -0.0005934782609 | Y89: -0.7160175449 | Z89: -71.60175449 | AA89: -11.81428949
B90: 26 | C90: -2.6 | D90: -1.416666667 | E90: -2.5 | G90: =G16 -> 0.0025 | H90: 0 | K90: 70 | L90: -3.057971014 | M90: -0.8413043478 | P90: =IF(U13>0,X13,0) -> 0 | Q90: =Q89 -> 0.045 | S90: 68 | T90: 0.175 | U90: 0.01 | V90: 0.1749933519 | W90: 0.009367294234 | X90: -0.000549771167 | Y90: -0.6717962009 | Z90: -67.17962009 | AA90: -11.75643352
B91: 27 | C91: -2.7 | D91: -1.416666667 | E91: -2.5 | G91: =G16 -> 0.0025 | H91: =C16 -> 50 | K91: 71 | L91: -2.969565217 | M91: -0.9745652174 | O91: Faser 8 | P91: 0 | Q91: =T14 -> 0.135 | S91: 69 | T91: 0.185 | U91: 0.01 | V91: 0.1849928548 | W91: 0.00929010968 | X91: -0.0005060640732 | Y91: =SDBeton(X91,$D$23/1000,$G$23,$F$23) -> -0.6262217207 | Z91: -62.62217207 | AA91: -11.58510183
B92: 28 | C92: -2.8 | D92: -1.416666667 | E92: -2.5 | K92: 72 | L92: -2.88115942 | M92: -1.107826087 | P92: =IF(U14>0,X14,0) -> 0 | Q92: =Q91 -> 0.135 | S92: 70 | T92: 0.195 | U92: 0.01 | V92: 0.1949923335 | W92: 0.009207935091 | X92: -0.0004623569794 | Y92: -0.5792941042 | Z92: -57.92941042 | AA92: -11.29623503
B93: 29 | C93: -2.9 | D93: -1.416666667 | E93: -2.5 | G93: =H14 -> 0.025 | H93: 0 | K93: 73 | L93: -2.792753623 | M93: -1.241086957 | O93: Faser 9 | P93: 0 | Q93: =T15 -> 0.225 | S93: 71 | T93: 0.205 | U93: 0.01 | V93: 0.2049917853 | W93: 0.00912063556 | X93: -0.0004186498856 | Y93: -0.5310133514 | Z93: -53.10133514 | AA93: -10.8857737
B94: 30 | C94: -3 | D94: -1.416666667 | E94: -2.5 | G94: =H14 -> 0.025 | H94: =F16 -> 45.65217391 | K94: 74 | L94: -2.704347826 | M94: -1.374347826 | P94: =IF(U15>0,X15,0) -> 0 | Q94: =Q93 -> 0.225 | S94: 72 | T94: 0.215 | U94: 0.01 | V94: 0.214991207 | W94: 0.009028062384 | X94: -0.0003749427918 | Y94: -0.4813794623 | Z94: -48.13794623 | AA94: -10.34965844
B95: 31 | C95: -3.1 | D95: -1.416666667 | E95: -2.5 | G95: =H14 -> 0.025 | H95: =D16 -> 52.5 | K95: 75 | L95: -2.615942029 | M95: -1.507608696 | O95: Faser 10 | P95: 0 | Q95: =T16 -> 0.315 | S95: 73 | T95: 0.225 | U95: 0.01 | V95: 0.2249905949 | W95: 0.00893005152 | X95: -0.0003312356979 | Y95: -0.4303924369 | Z95: -43.03924369 | AA95: -9.68382983
B96: 32 | C96: -3.2 | D96: -1.416666667 | E96: -2.5 | K96: 76 | L96: -2.527536232 | M96: -1.640869565 | P96: =IF(U16>0,X16,0) -> 0 | Q96: =Q95 -> 0.315 | S96: 74 | T96: 0.235 | U96: 0.01 | V96: 0.2349899449 | W96: 0.008826421779 | X96: -0.0002875286041 | Y96: -0.3780522752 | Z96: -37.80522752 | AA96: -8.884228468
B97: 33 | C97: -3.3 | D97: -1.416666667 | E97: -2.5 | K97: 77 | L97: -2.439130435 | M97: -1.774130435 | O97: Faser 11 | P97: 0 | Q97: =T17 -> 0.405 | S97: 75 | T97: 0.245 | U97: 0.01 | V97: 0.2449892521 | W97: 0.008716972714 | X97: -0.0002438215103 | Y97: -0.3243589773 | Z97: -32.43589773 | AA97: -7.946794943
B98: 34 | C98: -3.4 | D98: -1.416666667 | E98: -2.5 | K98: 78 | L98: -2.350724638 | M98: -1.907391304 | P98: =IF(U17>0,X17,0) -> 0 | Q98: =Q97 -> 0.405 | S98: 76 | T98: 0.255 | U98: 0.01 | V98: 0.254988511 | W98: 0.008601482122 | X98: -0.0002001144165 | Y98: -0.269312543 | Z98: -26.9312543 | AA98: -6.867469847
B99: 35 | C99: -3.5 | D99: -1.416666667 | E99: -2.5 | K99: 79 | L99: -2.262318841 | M99: -2.040652174 | O99: Faser 12 | P99: 0 | Q99: =T18 -> 0.45 | S99: 77 | T99: 0.265 | U99: 0.01 | V99: 0.264987715 | W99: 0.008479703082 | X99: -0.0001564073227 | Y99: -0.2129129725 | Z99: -21.29129725 | AA99: -5.642193772
J100: Bereich -5 | K100: 80 | L100: =H61 -> -2.173913043 | M100: =L100 -> -2.173913043 | P100: =IF(U18>0,X18,0) -> 0.000652173913 | Q100: =Q99 -> 0.45 | S100: 78 | T100: 0.275 | U100: 0.01 | V100: 0.2749868566 | W100: 0.008351360415 | X100: -0.0001127002288 | Y100: -0.1551602657 | Z100: -15.51602657 | AA100: -4.266907307
S101: 79 | T101: 0.285 | U101: 0.01 | V101: 0.2849859266 | W101: 0.008216146431 | X101: -6.899313501e-05 | Y101: -0.09605442261 | Z101: -9.605442261 | AA101: -2.737551044
B102: Bezogene Bemessungsschnittgrößen | F102: Lösung aus Interpolation | J102: Neuberechnung erforderlich ? | O102: Interpolation der Dehnungen | S102: 80 | T102: 0.295 | U102: 0.01 | V102: 0.2949849142 | W102: 0.008073715775 | X102: -2.528604119e-05 | Y102: -0.03559544323 | Z102: -3.559544323 | AA102: -1.050065575
B103: N_Ed = | C103: =Dateneingabe!G19 -> -4000 | D103: [kN] | F103: zugeh. omega = | G103: =O125 -> 1.364321071 | H103: [1] | K103: ist | L103: soll | M103: ist-soll | O103: epsc2 | P103: epss1 | S103: 81 | T103: 0.305 | U103: 0.01 | V103: 0.3049838065 | W103: 0.007923679127 | X103: 1.842105263e-05 | Y103: 0 | Z103: 0 | AA103: 0
B104: M_Ed = | C104: =Dateneingabe!I19 -> 1000 | D104: [kNm] | F104: zugeh. Dehnungszust. = | G104: =P125 -> 58.44841012 | H104: [1] | J104: Teilsicherh. | K104: 1 | L104: =B7 -> 1 | M104: =K104-L104 -> 0 | O104: =O105+($G$104-$G$105)/($G$106-$G$105)*(O106-O105) -> -3.5 | P104: =P105+($G$104-$G$105)/($G$106-$G$105)*(P106-P105) -> 0.5546934528 | S104: 82 | T104: 0.315 | U104: 0.01 | V104: 0.3149825877 | W104: 0.00776559544 | X104: 6.212814645e-05 | Y104: 0 | Z104: 0 | AA104: 0
B105: nue_Ed = | C105: =C103/O8/Datenbasis!G61 -> -1.176470588 | D105: [1] | F105: untere Grenze = | G105: =ROUNDDOWN(G104,0) -> 58 | H105: [1] | J105: C oder LC | K105: 1 | L105: =B59 -> 1 | M105: =K105-L105 -> 0 | O105: =VLOOKUP(G105,$K$21:$M$100,2,FALSE) -> -3.5 | P105: =VLOOKUP(G105,$K$21:$M$100,3,FALSE) -> 0.652173913 | S105: 83 | T105: 0.325 | U105: 0.01 | V105: 0.3249812384 | W105: 0.007598962261 | X105: 0.0001058352403 | Y105: 0 | Z105: 0 | AA105: 0
B106: mue_Ed = | C106: =C104/C107/K3/Datenbasis!G61*100 -> 0.4901960784 | D106: [1] | F106: obere Grenze = | G106: =G105+1 -> 59 | H106: [1] | J106: epsc2 | K106: -2 | L106: =D61 -> -2 | M106: 0 | O106: =IF(G106>80,L100,VLOOKUP(G106,$K$21:$M$100,2,FALSE)) -> -3.5 | P106: =IF(G106>80,M100,VLOOKUP(G106,$K$21:$M$100,3,FALSE)) -> 0.4347826087 | S106: 84 | T106: 0.335 | U106: 0.01 | V106: 0.3349797344 | W106: 0.007423203542 | X106: 0.0001495423341 | Y106: 0 | Z106: 0 | AA106: 0
B107: Ac = | C107: =O8 -> 2400 | D107: [cm2] | F107: ec2 = | G107: =O104 -> -3.5 | H107: [0/00] | J107: epsc2u | K107: -3.5 | L107: =E61 -> -3.5 | M107: 0 | S107: 85 | T107: 0.345 | U107: 0.01 | V107: 0.3449780455 | W107: 0.007237654084 | X107: 0.0001932494279 | Y107: 0 | Z107: 0 | AA107: 0
B108: Darstellung im Diagramm | F108: es2 = | G108: =G109+(G107-G109)*(P5-P4)/P5 -> -3.286595081 | H108: [0/00] | J108: n | K108: 2 | L108: =F61 -> 2 | M108: 0 | O108: =ROUND(G104,0) -> 58 | S108: 86 | T108: 0.355 | U108: 0.01 | V108: 0.3549761331 | W108: 0.007041539406 | X108: 0.0002369565217 | Y108: 0 | Z108: 0 | AA108: 0
B109: 0 | C109: 0 | F109: es1 = | G109: =P104 -> 0.5546934528 | H109: [0/00] | J109: Querschnitt | K109: 1 | L109: =J6 -> 1 | M109: 0 | S109: 87 | T109: 0.365 | U109: 0.01 | V109: 0.3649739472 | W109: 0.006833949261 | X109: 0.0002806636156 | Y109: 0 | Z109: 0 | AA109: 0
B110: =C106 -> 0.4901960784 | C110: =C105 -> -1.176470588 | F110: ec1 = | G110: =G109-(G107-G109)*P4/P5 -> 0.7680983713 | H110: [0/00] | J110: b0/b | K110: 0 | L110: =M5 -> 0 | M110: 0 | S110: 88 | T110: 0.375 | U110: 0.01 | V110: 0.3749714216 | W110: 0.006613802185 | X110: 0.0003243707094 | Y110: 0 | Z110: 0 | AA110: 0
J111: h0/h | K111: 0 | L111: =K5 -> 0 | M111: 0 | S111: 89 | T111: 0.385 | U111: 0.01 | V111: 0.3849684673 | W111: 0.006379797012 | X111: 0.0003680778032 | Y111: 0 | Z111: 0 | AA111: 0
B112: Angrenzende mue-nue-Punkte | E112: ie = | F112: 1 | G112: je = | H112: 1 | J112: Stauchung | K112: 1 | L112: =D3 -> 1 | M112: 0 | S112: 90 | T112: 0.395 | U112: 0.01 | V112: 0.3949649614 | W112: 0.006130344984 | X112: 0.000411784897 | Y112: 0 | Z112: 0 | AA112: 0
B113: DZ \ omega | C113: 1.2 | E113: 1.3 | G113: 1.4 | J113: Verfestigung | K113: 2 | L113: =C3 -> 2 | M113: 0 | S113: 91 | T113: 0.405 | U113: 0.01 | V113: 0.4049607289 | W113: 0.005863471965 | X113: 0.0004554919908 | Y113: 0 | Z113: 0 | AA113: 0
B114: 57 | C114: 0.4916592461 | D114: -0.9774609199 | E114: 0.5232132686 | F114: -1.00758097 | G114: 0.5547672912 | H114: -1.03770102 | J114: d1/h | K114: 0.05 | L114: =Dateneingabe!$G$26 -> 0.05 | M114: 0 | S114: 92 | T114: 0.415 | U114: 0.01 | V114: 0.4149555127 | W114: 0.005576672844 | X114: 0.0004991990847 | Y114: 0 | Z114: 0 | AA114: 0
B115: 58 | C115: 0.4598397137 | D115: -1.069727347 | E115: 0.4891443002 | F115: -1.10484865 | G115: 0.5184488867 | H115: -1.139969953 | J115: Nettobeton | K115: 0 | L115: =G3 -> 0 | M115: 0 | S115: 93 | T115: 0.425 | U115: 0.01 | V115: 0.424948918 | W115: 0.005266685881 | X115: 0.0005429061785 | Y115: 0 | Z115: 0 | AA115: 0
B116: 59 | C116: 0.4262516357 | D116: -1.165506778 | E116: 0.4533067861 | F116: -1.205629334 | G116: 0.4803619365 | H116: -1.245751891 | J116: Folgerung: | K116: =IF(M116=0,"Nein","Ja") -> Nein | L116: Summe: | M116: =SUM(M104:M115) -> 0 | S116: 94 | T116: 0.435 | U116: 0.01 | V116: 0.4349403066 | W116: 0.004929125289 | X116: 0.0005866132723 | Y116: 0 | Z116: 0 | AA116: 0
S117: 95 | T117: 0.445 | U117: 0.01 | V117: 0.4449285744 | W117: 0.0045578445 | X117: 0.0006303203661 | Y117: 0 | Z117: 0 | AA117: 0
B118: Gleichungsystem (bilieare Interpolation) | G118: rechte Seite | J118: Kehrmatrix der Koeffizientenmatrix | O118: Lösungsvektoren | S118: 96 | T118: 0.455 | U118: 0.01 | V118: 0.4549116305 | W118: 0.004143738859 | X118: 0.00067402746 | Y118: 0 | Z118: 0 | AA118: 0
B119: Eckpunkt | C119: 1 | D119: mue | E119: nue | F119: mue∙nue | G119: omega | H119: DZ | J119: 1 | K119: 2 | L119: 3 | M119: 4 | O119: für omega | P119: für DZ | S119: 97 | T119: 0.465 | U119: 0.01 | V119: 0.464884975 | W119: 0.003672226456 | X119: 0.0007177345538 | Y119: 0 | Z119: 0 | AA119: 0
B120: 1 = ol | C120: 1 | D120: =IF(F112=0,IF(H112=0,C114,E114),IF(H112=0,C115,E115)) -> 0.4891443002 | E120: =IF(F112=0,IF(H112=0,D114,F114),IF(H112=0,D115,F115)) -> -1.10484865 | F120: =D120*E120 -> -0.5404304197 | G120: =IF(H112=0,C113,E113) -> 1.3 | H120: =IF(F112=0,B114,B115) -> 58 | J120: =MINVERSE(C120:F123) -> 394.9469722 | K120: -376.8349446 | L120: 354.2554859 | M120: -371.3675136 | O120: =MMULT(J120:M123,G120:H123) -> -0.4112027622 | P120: 35.42054132 | S120: 98 | T120: 0.475 | U120: 0.01 | V120: 0.4748367996 | W120: 0.003116984103 | X120: 0.0007614416476 | Y120: 0 | Z120: 0 | AA120: 0
B121: 2 = ul | C121: 1 | D121: =IF(F112=0,IF(H112=0,C115,E115),IF(H112=0,C116,E116)) -> 0.4533067861 | E121: =IF(F112=0,IF(H112=0,D115,F115),IF(H112=0,D116,F116)) -> -1.205629334 | F121: =D121*E121 -> -0.5465199587 | G121: =G120 -> 1.3 | H121: =IF(F112=0,B115,B116) -> 59 | J121: -795.3112857 | K121: 779.8148647 | L121: -748.0911403 | M121: 763.5875613 | O121: 1.549642105 | P121: 31.72372442 | S121: 99 | T121: 0.485 | U121: 0.01 | V121: 0.4847226655 | W121: 0.00241920114 | X121: 0.0008051487414 | Y121: 0 | Z121: 0 | AA121: 0
B122: 3 = ur | C122: 1 | D122: =IF(F112=0,IF(H112=0,E115,G115),IF(H112=0,E116,G116)) -> 0.4803619365 | E122: =IF(F112=0,IF(H112=0,F115,H115),IF(H112=0,F116,H116)) -> -1.245751891 | F122: -0.5984117905 | G122: =IF(H112=0,E113,G113) -> 1.4 | H122: =H121 -> 59 | J122: 333.3640577 | K122: -328.2928469 | L122: 305.0018375 | M122: -310.0730483 | O122: -0.5071210795 | P122: -23.29100937 | S122: 100 | T122: 0.495 | U122: 0.01 | V122: 0.4940034485 | W122: 0.001329326163 | X122: 0.0008488558352 | Y122: 0 | Z122: 0 | AA122: 0
B123: 4 = or | C123: 1 | D123: =IF(F112=0,IF(H112=0,E114,G114),IF(H112=0,E115,G115)) -> 0.5184488867 | E123: =IF(F112=0,IF(H112=0,F114,H114),IF(H112=0,F115,H115)) -> -1.139969953 | F123: -0.591016153 | G123: =G122 -> 1.4 | H123: =H120 -> 58 | J123: -672.4118886 | K123: 679.6822439 | L123: -645.1337436 | M123: 637.8633882 | O123: -0.7270355353 | P123: 34.54850038 | T123: =SUM(T23:T122) -> 0 | U123: =SUM(U23:U122) -> 1 | V123: =SUM(V23:V122) -> 5.551115123e-16 | W123: =SUM(W23:W122) -> 0.7853981634 | Z123: =SUM(Z23:Z122) -> -9183.84919 | AA123: =SUM(AA23:AA122) -> 1532.616245
J124: Interpolation für Sollgrößen (mue_ED, nue_Ed) | O124: omega | P124: DZ | S124: c2 | T124: -0.5 | U124: Randdehnung oben | X124: =$L$17+T124*$M$17 -> -0.0035 | Y124: -1.416666667
J125: 1 | K125: =C106 -> 0.4901960784 | L125: =C105 -> -1.176470588 | M125: =K125*L125 -> -0.5767012687 | O125: =MMULT(J125:M125,O120:P123) -> 1.364321071 | P125: 58.44841012 | S125: c1 | T125: 0.5 | U125: Randdehnung unten | X125: =$L$17+T125*$M$17 -> 0.0008707093822 | Y125: 0
S127: Gesamtquerschnitt | Z127: [kN] | AA127: [kNm]
T128: z(i) [m] | Z128: nb(i) + ns(i) | AA128: mb(i) + ms(i)
T129: =AA129/Z129 -> -0.4427251644 | Z129: =Z123+Z19 -> -15652.02254 | AA129: =AA123+AA19 -> 6929.544253

Sheet Speicherung
B2: Alle Dehnungszustände und Bew-grade durchlaufen und Ergebnisse speichern | H2: Dehnungszustand auswählen | K2: Eintragen
H4: Bewehrungsgrad auswählen | K4: Löschen
B5: omega | C5: =Datenbasis!P54 -> 1.3 | D5: =Datenbasis!O16 -> 14 | E5: =D5*2+1 -> 29 | F5: 0.02
B7: n | C7: muecd | D7: nuecd | H7: =Dateneingabe!D2 -> 
B8: =Datenbasis!K17 -> 58 | C8: =Datenbasis!$P$52 -> 0.4891443002 | D8: =Datenbasis!$P$53 -> -1.10484865
C9: -0.1 | D9: =extrapoliert | E9: 0 | G9: 0.1 | I9: 0.2 | K9: 0.3 | M9: 0.4 | O9: 0.5 | Q9: 0.6 | S9: 0.7 | U9: 0.8 | W9: 0.9 | Y9: 1 | AA9: 1.1 | AC9: 1.2 | AE9: 1.3 | AG9: 1.4 | AI9: 1.5 | AK9: 1.6 | AM9: 1.7 | AO9: 1.8 | AQ9: 1.9 | AS9: 2 | AU9: 2.5 | AV9: = extrapoliert
B10: n | C10: =C7 -> muecd | D10: =D7 -> nuecd | E10: =C10 -> muecd | F10: =D10 -> nuecd | G10: =E10 -> muecd | H10: =F10 -> nuecd | I10: =G10 -> muecd | J10: nuecd | K10: muecd | L10: nuecd | M10: muecd | N10: nuecd | O10: muecd | P10: nuecd | Q10: muecd | R10: nuecd | S10: muecd | T10: nuecd | U10: muecd | V10: nuecd | W10: muecd | X10: nuecd | Y10: muecd | Z10: nuecd | AA10: muecd | AB10: nuecd | AC10: muecd | AD10: nuecd | AE10: muecd | AF10: nuecd | AG10: muecd | AH10: nuecd | AI10: muecd | AJ10: nuecd | AK10: muecd | AL10: nuecd | AM10: muecd | AN10: nuecd | AO10: muecd | AP10: nuecd | AQ10: muecd | AR10: nuecd | AS10: =AQ10 -> muecd | AT10: =AR10 -> nuecd | AU10: =AS10 -> muecd | AV10: =AT10 -> nuecd
B11: 0 | C11: =-C13 -> 0 | D11: =D13 -> -0.25 | E11: =-E13 -> 0 | F11: =F13 -> 0 | G11: =-G13 -> -0.0005836466165 | H11: =H13 -> 0.1037030075 | I11: =-I13 -> -0.001167293233 | J11: =J13 -> 0.207406015 | K11: =-K13 -> -0.00175093985 | L11: =L13 -> 0.3111090226 | M11: =-M13 -> -0.002334586466 | N11: =N13 -> 0.4148120301 | O11: =-O13 -> -0.002918233083 | P11: =P13 -> 0.5185150376 | Q11: =-Q13 -> -0.003501879699 | R11: =R13 -> 0.6222180451 | S11: =-S13 -> -0.004085526316 | T11: =T13 -> 0.7259210526 | U11: =-U13 -> -0.004669172932 | V11: =V13 -> 0.8296240602 | W11: =-W13 -> -0.005252819549 | X11: =X13 -> 0.9333270677 | Y11: =-Y13 -> -0.005836466165 | Z11: =Z13 -> 1.037030075 | AA11: =-AA13 -> -0.006420112782 | AB11: =AB13 -> 1.140733083 | AC11: =-AC13 -> -0.007003759398 | AD11: =AD13 -> 1.24443609 | AE11: =-AE13 -> -0.007587406015 | AF11: =AF13 -> 1.348139098 | AG11: =-AG13 -> -0.008171052632 | AH11: =AH13 -> 1.451842105 | AI11: =-AI13 -> -0.008754699248 | AJ11: =AJ13 -> 1.555545113 | AK11: =-AK13 -> -0.009338345865 | AL11: =AL13 -> 1.65924812 | AM11: =-AM13 -> -0.009921992481 | AN11: =AN13 -> 1.762951128 | AO11: =-AO13 -> -0.0105056391 | AP11: =AP13 -> 1.866654135 | AQ11: =-AQ13 -> -0.01108928571 | AR11: =AR13 -> 1.970357143 | AS11: =-AS13 -> -0.01167293233 | AT11: =AT13 -> 2.07406015 | AU11: =-AU13 -> -0.01459116541 | AV11: =AV13 -> 2.592575188
B12: 1 | C12: =E12/2 -> 0 | D12: =-0.25+F12/2 -> -0.25 | E12: 0 | F12: 0 | G12: 0 | H12: 0.105 | I12: 0 | J12: 0.21 | K12: 0 | L12: 0.315 | M12: 0 | N12: 0.42 | O12: 0 | P12: 0.525 | Q12: 0 | R12: 0.63 | S12: 0 | T12: 0.735 | U12: 0 | V12: 0.84 | W12: 0 | X12: 0.945 | Y12: 0 | Z12: 1.05 | AA12: 0 | AB12: 1.155 | AC12: 0 | AD12: 1.26 | AE12: 0 | AF12: 1.365 | AG12: 0 | AH12: 1.47 | AI12: 0 | AJ12: 1.575 | AK12: 0 | AL12: 1.68 | AM12: 0 | AN12: 1.785 | AO12: 0 | AP12: 1.89 | AQ12: 0 | AR12: 1.995 | AS12: 0 | AT12: 2.1 | AU12: =2*AS12-AI12 -> 0 | AV12: =2*AT12-AJ12 -> 2.625
B13: 2 | C13: =E13/2 -> 0 | D13: =-0.25+F13/2 -> -0.25 | E13: 0 | F13: 0 | G13: 0.0005836466165 | H13: 0.1037030075 | I13: 0.001167293233 | J13: 0.207406015 | K13: 0.00175093985 | L13: 0.3111090226 | M13: 0.002334586466 | N13: 0.4148120301 | O13: 0.002918233083 | P13: 0.5185150376 | Q13: 0.003501879699 | R13: 0.6222180451 | S13: 0.004085526316 | T13: 0.7259210526 | U13: 0.004669172932 | V13: 0.8296240602 | W13: 0.005252819549 | X13: 0.9333270677 | Y13: 0.005836466165 | Z13: 1.037030075 | AA13: 0.006420112782 | AB13: 1.140733083 | AC13: 0.007003759398 | AD13: 1.24443609 | AE13: 0.007587406015 | AF13: 1.348139098 | AG13: 0.008171052632 | AH13: 1.451842105 | AI13: 0.008754699248 | AJ13: 1.555545113 | AK13: 0.009338345865 | AL13: 1.65924812 | AM13: 0.009921992481 | AN13: 1.762951128 | AO13: 0.0105056391 | AP13: 1.866654135 | AQ13: 0.01108928571 | AR13: 1.970357143 | AS13: 0.01167293233 | AT13: 2.07406015 | AU13: =2*AS13-AI13 -> 0.01459116541 | AV13: =2*AT13-AJ13 -> 2.592575188
B14: 3 | C14: 0 | D14: -0.25 | E14: 0 | F14: 0 | G14: 0.01000657895 | H14: 0.08276315789 | I14: 0.02001315789 | J14: 0.1655263158 | K14: 0.03001973684 | L14: 0.2482894737 | M14: 0.04002631579 | N14: 0.3310526316 | O14: 0.05003289474 | P14: 0.4138157895 | Q14: 0.06003947368 | R14: 0.4965789474 | S14: 0.07004605263 | T14: 0.5793421053 | U14: 0.08005263158 | V14: 0.6621052632 | W14: 0.09005921053 | X14: 0.7448684211 | Y14: 0.1000657895 | Z14: 0.8276315789 | AA14: 0.1100723684 | AB14: 0.9103947368 | AC14: 0.1200789474 | AD14: 0.9931578947 | AE14: 0.1300855263 | AF14: 1.075921053 | AG14: 0.1400921053 | AH14: 1.158684211 | AI14: 0.1500986842 | AJ14: 1.241447368 | AK14: 0.1601052632 | AL14: 1.324210526 | AM14: 0.1701118421 | AN14: 1.406973684 | AO14: 0.1801184211 | AP14: 1.489736842 | AQ14: 0.190125 | AR14: 1.5725 | AS14: 0.2001315789 | AT14: 1.655263158 | AU14: 0.2501644737 | AV14: 2.069078947
B15: 4 | C15: 0.0005070095347 | D15: -0.2510242617 | E15: 0.001014019069 | F15: -0.002048523373 | G15: 0.01445244012 | H15: 0.07308831873 | I15: 0.02789086117 | J15: 0.1482251608 | K15: 0.04132928223 | L15: 0.2233620029 | M15: 0.05476770328 | N15: 0.298498845 | O15: 0.06820612433 | P15: 0.3736356872 | Q15: 0.08164454539 | R15: 0.4487725293 | S15: 0.09508296644 | T15: 0.5239093714 | U15: 0.1085213875 | V15: 0.5990462135 | W15: 0.1219598085 | X15: 0.6741830556 | Y15: 0.1353982296 | Z15: 0.7493198977 | AA15: 0.1488366506 | AB15: 0.8244567398 | AC15: 0.1622750717 | AD15: 0.8995935819 | AE15: 0.1757134928 | AF15: 0.974730424 | AG15: 0.1891519138 | AH15: 1.049867266 | AI15: 0.2025903349 | AJ15: 1.125004108 | AK15: 0.2160287559 | AL15: 1.20014095 | AM15: 0.229467177 | AN15: 1.275277792 | AO15: 0.242905598 | AP15: 1.350414635 | AQ15: 0.2563440191 | AR15: 1.425551477 | AS15: 0.2697824401 | AT15: 1.500688319 | AU15: 0.3369745454 | AV15: 1.876372529
B16: 5 | C16: 0.001917287737 | D16: -0.2539055973 | E16: 0.003834575474 | F16: -0.007811194598 | G16: 0.02070483863 | H16: 0.05969933172 | I16: 0.03757510179 | J16: 0.127209858 | K16: 0.05444536495 | L16: 0.1947203843 | M16: 0.07131562811 | N16: 0.2622309107 | O16: 0.08818589126 | P16: 0.329741437 | Q16: 0.1050561544 | R16: 0.3972519633 | S16: 0.1219264176 | T16: 0.4647624896 | U16: 0.1387966807 | V16: 0.5322730159 | W16: 0.1556669439 | X16: 0.5997835422 | Y16: 0.1725372071 | Z16: 0.6672940686 | AA16: 0.1894074702 | AB16: 0.7348045949 | AC16: 0.2062777334 | AD16: 0.8023151212 | AE16: 0.2231479965 | AF16: 0.8698256475 | AG16: 0.2400182597 | AH16: 0.9373361738 | AI16: 0.2568885228 | AJ16: 1.0048467 | AK16: 0.273758786 | AL16: 1.072357226 | AM16: 0.2906290492 | AN16: 1.139867753 | AO16: 0.3074993123 | AP16: 1.207378279 | AQ16: 0.3243695755 | AR16: 1.274888805 | AS16: 0.3412398386 | AT16: 1.342399332 | AU16: 0.4255911544 | AV16: 1.679951963
B17: 6 | C17: 0.004037148553 | D17: -0.2583037254 | E17: 0.008074297105 | F17: -0.01660745083 | G17: 0.02837640237 | H17: 0.0432767597 | I17: 0.04867850763 | J17: 0.1031609702 | K17: 0.06898061289 | L17: 0.1630451807 | M17: 0.08928271816 | N17: 0.2229293913 | O17: 0.1095848234 | P17: 0.2828136018 | Q17: 0.1298869287 | R17: 0.3426978123 | S17: 0.1501890339 | T17: 0.4025820229 | U17: 0.1704911392 | V17: 0.4624662334 | W17: 0.1907932445 | X17: 0.5223504439 | Y17: 0.2110953497 | Z17: 0.5822346544 | AA17: 0.231397455 | AB17: 0.642118865 | AC17: 0.2516995603 | AD17: 0.7020030755 | AE17: 0.2720016655 | AF17: 0.761887286 | AG17: 0.2923037708 | AH17: 0.8217714965 | AI17: 0.3126058761 | AJ17: 0.8816557071 | AK17: 0.3329079813 | AL17: 0.9415399176 | AM17: 0.3532100866 | AN17: 1.001424128 | AO17: 0.3735121918 | AP17: 1.061308339 | AQ17: 0.3938142971 | AR17: 1.121192549 | AS17: 0.4141164024 | AT17: 1.18107676 | AU17: 0.5156269287 | AV17: 1.480497812
B18: 7 | C18: 0.006529779086 | D18: -0.2635575346 | E18: 0.01305955817 | F18: -0.02711506925 | G18: 0.03679350554 | H18: 0.02514282548 | I18: 0.06052745291 | J18: 0.07740072022 | K18: 0.08426140028 | L18: 0.129658615 | M18: 0.1079953476 | N18: 0.1819165097 | O18: 0.131729295 | P18: 0.2341744044 | Q18: 0.1554632424 | R18: 0.2864322992 | S18: 0.1791971898 | T18: 0.3386901939 | U18: 0.2029311371 | V18: 0.3909480886 | W18: 0.2266650845 | X18: 0.4432059834 | Y18: 0.2503990319 | Z18: 0.4954638781 | AA18: 0.2741329792 | AB18: 0.5477217729 | AC18: 0.2978669266 | AD18: 0.5999796676 | AE18: 0.321600874 | AF18: 0.6522375623 | AG18: 0.3453348213 | AH18: 0.7044954571 | AI18: 0.3690687687 | AJ18: 0.7567533518 | AK18: 0.3928027161 | AL18: 0.8090112465 | AM18: 0.4165366634 | AN18: 0.8612691413 | AO18: 0.4402706108 | AP18: 0.913527036 | AQ18: 0.4640045582 | AR18: 0.9657849307 | AS18: 0.4877385055 | AT18: 1.018042825 | AU18: 0.6064082424 | AV18: 1.279332299
B19: 8 | C19: 0.009195163218 | D19: -0.2692772377 | E19: 0.01839032644 | F19: -0.03855447542 | G19: 0.04555611591 | H19: 0.006077103532 | I19: 0.07272190538 | J19: 0.05070868248 | K19: 0.09988769486 | L19: 0.09534026143 | M19: 0.1270534843 | N19: 0.1399718404 | O19: 0.1542192738 | P19: 0.1846034193 | Q19: 0.1813850633 | R19: 0.2292349983 | S19: 0.2085508528 | T19: 0.2738665772 | U19: 0.2357166422 | V19: 0.3184981562 | W19: 0.2628824317 | X19: 0.3631297351 | Y19: 0.2900482212 | Z19: 0.4077613141 | AA19: 0.3172140106 | AB19: 0.452392893 | AC19: 0.3443798001 | AD19: 0.497024472 | AE19: 0.3715455896 | AF19: 0.5416560509 | AG19: 0.3987113791 | AH19: 0.5862876298 | AI19: 0.4258771685 | AJ19: 0.6309192088 | AK19: 0.453042958 | AL19: 0.6755507877 | AM19: 0.4802087475 | AN19: 0.7201823667 | AO19: 0.507374537 | AP19: 0.7648139456 | AQ19: 0.5345403264 | AR19: 0.8094455246 | AS19: 0.5617061159 | AT19: 0.8540771035 | AU19: 0.6975350633 | AV19: 1.077234998
B20: 9 | C20: 0.01184588742 | D20: -0.2750892192 | E20: 0.02369177484 | F20: -0.05017843837 | G20: 0.05428940642 | H20: -0.01317317521 | I20: 0.084887038 | J20: 0.02383208795 | K20: 0.1154846696 | L20: 0.06083735111 | M20: 0.1460823012 | N20: 0.09784261427 | O20: 0.1766799327 | P20: 0.1348478774 | Q20: 0.2072775643 | R20: 0.1718531406 | S20: 0.2378751959 | T20: 0.2088584037 | U20: 0.2684728275 | V20: 0.2458636669 | W20: 0.299070459 | X20: 0.2828689301 | Y20: 0.3296680906 | Z20: 0.3198741932 | AA20: 0.3602657222 | AB20: 0.3568794564 | AC20: 0.3908633538 | AD20: 0.3938847195 | AE20: 0.4214609854 | AF20: 0.4308899827 | AG20: 0.4520586169 | AH20: 0.4678952458 | AI20: 0.4826562485 | AJ20: 0.504900509 | AK20: 0.5132538801 | AL20: 0.5419057722 | AM20: 0.5438515117 | AN20: 0.5789110353 | AO20: 0.5744491433 | AP20: 0.6159162985 | AQ20: 0.6050467748 | AR20: 0.6529215616 | AS20: 0.6356444064 | AT20: 0.6899268248 | AU20: 0.7886325643 | AV20: 0.8749531406
B21: 10 | C21: 0.01436432155 | D21: -0.2807523831 | E21: 0.02872864309 | F21: -0.06150476627 | G21: 0.06275811678 | H21: -0.03212581891 | I21: 0.09678759046 | J21: -0.002746871537 | K21: 0.1308170641 | L21: 0.02663207583 | M21: 0.1648465378 | N21: 0.0560110232 | O21: 0.1988760115 | P21: 0.08538997057 | Q21: 0.2329054852 | R21: 0.1147689179 | S21: 0.2669349589 | T21: 0.1441478653 | U21: 0.3009644326 | V21: 0.1735268127 | W21: 0.3349939063 | X21: 0.20290576 | Y21: 0.3690233799 | Z21: 0.2322847074 | AA21: 0.4030528536 | AB21: 0.2616636548 | AC21: 0.4370823273 | AD21: 0.2910426021 | AE21: 0.471111801 | AF21: 0.3204215495 | AG21: 0.5051412747 | AH21: 0.3498004969 | AI21: 0.5391707484 | AJ21: 0.3791794443 | AK21: 0.573200222 | AL21: 0.4085583916 | AM21: 0.6072296957 | AN21: 0.437937339 | AO21: 0.6412591694 | AP21: 0.4673162864 | AQ21: 0.6752886431 | AR21: 0.4966952337 | AS21: 0.7093181168 | AT21: 0.5260741811 | AU21: 0.8794654852 | AV21: 0.6729689179
B22: 11 | C22: 0.01679878315 | D22: -0.2863747715 | E22: 0.0335975663 | F22: -0.07274954294 | G22: 0.07105888209 | H22: -0.05099691136 | I22: 0.1085201979 | J22: -0.02924427978 | K22: 0.1459815137 | L22: -0.007491648199 | M22: 0.1834428295 | N22: 0.01426098338 | O22: 0.2209041452 | P22: 0.03601361496 | Q22: 0.258365461 | R22: 0.05776624654 | S22: 0.2958267768 | T22: 0.07951887812 | U22: 0.3332880926 | V22: 0.1012715097 | W22: 0.3707494084 | X22: 0.1230241413 | Y22: 0.4082107242 | Z22: 0.1447767729 | AA22: 0.44567204 | AB22: 0.1665294044 | AC22: 0.4831333558 | AD22: 0.188282036 | AE22: 0.5205946716 | AF22: 0.2100346676 | AG22: 0.5580559874 | AH22: 0.2317872992 | AI22: 0.5955173031 | AJ22: 0.2535399307 | AK22: 0.6329786189 | AL22: 0.2752925623 | AM22: 0.6704399347 | AN22: 0.2970451939 | AO22: 0.7079012505 | AP22: 0.3187978255 | AQ22: 0.7453625663 | AR22: 0.3405504571 | AS22: 0.7828238821 | AT22: 0.3623030886 | AU22: 0.970130461 | AV22: 0.4710662465
B23: 12 | C23: 0.01911489554 | D23: -0.2918646206 | E23: 0.03822979107 | F23: -0.08372924117 | G23: 0.07912294897 | H23: -0.06960292538 | I23: 0.1200161069 | J23: -0.05547660959 | K23: 0.1609092648 | L23: -0.0413502938 | M23: 0.2018024226 | N23: -0.02722397801 | O23: 0.2426955805 | P23: -0.01309766222 | Q23: 0.2835887384 | R23: 0.001028653566 | S23: 0.3244818963 | T23: 0.01515496936 | U23: 0.3653750542 | V23: 0.02928128515 | W23: 0.4062682121 | X23: 0.04340760093 | Y23: 0.44716137 | Z23: 0.05753391672 | AA23: 0.4880545279 | AB23: 0.07166023251 | AC23: 0.5289476858 | AD23: 0.0857865483 | AE23: 0.5698408437 | AF23: 0.09991286409 | AG23: 0.6107340016 | AH23: 0.1140391799 | AI23: 0.6516271595 | AJ23: 0.1281654957 | AK23: 0.6925203174 | AL23: 0.1422918115 | AM23: 0.7334134753 | AN23: 0.1564181273 | AO23: 0.7743066332 | AP23: 0.170544443 | AQ23: 0.8151997911 | AR23: 0.1846707588 | AS23: 0.856092949 | AT23: 0.1987970746 | AU23: 1.060558738 | AV23: 0.2694286536
B24: 13 | C24: 0.02130979687 | D24: -0.297203125 | E24: 0.04261959375 | F24: -0.09440625 | G24: 0.08694459375 | H24: -0.08790625 | I24: 0.1312695937 | J24: -0.08140625 | K24: 0.1755945937 | L24: -0.07490625 | M24: 0.2199195937 | N24: -0.06840625 | O24: 0.2642445937 | P24: -0.06190625 | Q24: 0.3085695937 | R24: -0.05540625 | S24: 0.3528945937 | T24: -0.04890625 | U24: 0.3972195937 | V24: -0.04240625 | W24: 0.4415445937 | X24: -0.03590625 | Y24: 0.4858695937 | Z24: -0.02940625 | AA24: 0.5301945937 | AB24: -0.02290625 | AC24: 0.5745195937 | AD24: -0.01640625 | AE24: 0.6188445937 | AF24: -0.00990625 | AG24: 0.6631695937 | AH24: -0.00340625 | AI24: 0.7074945937 | AJ24: 0.00309375 | AK24: 0.7518195937 | AL24: 0.00959375 | AM24: 0.7961445937 | AN24: 0.01609375 | AO24: 0.8404695937 | AP24: 0.02259375 | AQ24: 0.8847945937 | AR24: 0.02909375 | AS24: 0.9291195937 | AT24: 0.03559375 | AU24: 1.150744594 | AV24: 0.06809375
B25: 14 | C25: 0.02174797997 | D25: -0.2982968098 | E25: 0.04349595994 | F25: -0.0965936197 | G25: 0.08811857075 | H25: -0.09088655599 | I25: 0.1327411816 | J25: -0.08517949227 | K25: 0.1773637924 | L25: -0.07947242856 | M25: 0.2219864032 | N25: -0.07376536485 | O25: 0.266609014 | P25: -0.06805830114 | Q25: 0.3112316248 | R25: -0.06235123743 | S25: 0.3558542356 | T25: -0.05664417372 | U25: 0.4004768464 | V25: -0.05093711 | W25: 0.4450994572 | X25: -0.04523004629 | Y25: 0.489722068 | Z25: -0.03952298258 | AA25: 0.5343446788 | AB25: -0.03381591887 | AC25: 0.5789672896 | AD25: -0.02810885516 | AE25: 0.6235899004 | AF25: -0.02240179144 | AG25: 0.6682125112 | AH25: -0.01669472773 | AI25: 0.712835122 | AJ25: -0.01098766402 | AK25: 0.7574577328 | AL25: -0.005280600308 | AM25: 0.8020803436 | AN25: 0.0004264634041 | AO25: 0.8467029544 | AP25: 0.006133527116 | AQ25: 0.8913255652 | AR25: 0.01184059083 | AS25: 0.935948176 | AT25: 0.01754765454 | AU25: 1.15906123 | AV25: 0.0460829731
B26: 15 | C26: 0.02216449899 | D26: -0.2993371457 | E26: 0.04432899799 | F26: -0.09867429136 | G26: 0.0892492196 | H26: -0.09376016394 | I26: 0.1341694412 | J26: -0.08884603651 | K26: 0.1790896628 | L26: -0.08393190909 | M26: 0.2240098844 | N26: -0.07901778167 | O26: 0.268930106 | P26: -0.07410365424 | Q26: 0.3138503276 | R26: -0.06918952682 | S26: 0.3587705492 | T26: -0.06427539939 | U26: 0.4036907708 | V26: -0.05936127197 | W26: 0.4486109924 | X26: -0.05444714455 | Y26: 0.4935312141 | Z26: -0.04953301712 | AA26: 0.5384514357 | AB26: -0.0446188897 | AC26: 0.5833716573 | AD26: -0.03970476228 | AE26: 0.6282918789 | AF26: -0.03479063485 | AG26: 0.6732121005 | AH26: -0.02987650743 | AI26: 0.7181323221 | AJ26: -0.02496238 | AK26: 0.7630525437 | AL26: -0.02004825258 | AM26: 0.8079727653 | AN26: -0.01513412516 | AO26: 0.8528929869 | AP26: -0.01021999773 | AQ26: 0.8978132085 | AR26: -0.005305870309 | AS26: 0.9427334301 | AT26: -0.0003917428848 | AU26: 1.167334538 | AV26: 0.02417889423
B27: 16 | C27: 0.02255935394 | D27: -0.3003241325 | E27: 0.04511870789 | F27: -0.100648265 | G27: 0.0903365403 | H27: -0.09652707385 | I27: 0.1355543727 | J27: -0.09240588272 | K27: 0.1807722051 | L27: -0.08828469158 | M27: 0.2259900375 | N27: -0.08416350045 | O27: 0.2712078699 | P27: -0.08004230931 | Q27: 0.3164257023 | R27: -0.07592111817 | S27: 0.3616435348 | T27: -0.07179992704 | U27: 0.4068613672 | V27: -0.0676787359 | W27: 0.4520791996 | X27: -0.06355754477 | Y27: 0.497297032 | Z27: -0.05943635363 | AA27: 0.5425148644 | AB27: -0.0553151625 | AC27: 0.5877326968 | AD27: -0.05119397136 | AE27: 0.6329505292 | AF27: -0.04707278022 | AG27: 0.6781683616 | AH27: -0.04295158909 | AI27: 0.723386194 | AJ27: -0.03883039795 | AK27: 0.7686040264 | AL27: -0.03470920682 | AM27: 0.8138218589 | AN27: -0.03058801568 | AO27: 0.8590396913 | AP27: -0.02646682455 | AQ27: 0.9042575237 | AR27: -0.02234563341 | AS27: 0.9494753561 | AT27: -0.01822444227 | AU27: 1.175564518 | AV27: 0.002381513405
B28: 17 | C28: 0.02305452633 | D28: -0.3015830543 | E28: 0.04610905266 | F28: -0.1031661087 | G28: 0.09162449588 | H28: -0.0998378538 | I28: 0.1371399391 | J28: -0.09650959896 | K28: 0.1826553823 | L28: -0.09318134411 | M28: 0.2281708255 | N28: -0.08985308926 | O28: 0.2736862687 | P28: -0.08652483441 | Q28: 0.3192017119 | R28: -0.08319657957 | S28: 0.3647171552 | T28: -0.07986832472 | U28: 0.4102325984 | V28: -0.07654006987 | W28: 0.4557480416 | X28: -0.07321181502 | Y28: 0.5012634848 | Z28: -0.06988356018 | AA28: 0.546778928 | AB28: -0.06655530533 | AC28: 0.5922943712 | AD28: -0.06322705048 | AE28: 0.6378098144 | AF28: -0.05989879563 | AG28: 0.6833252576 | AH28: -0.05657054079 | AI28: 0.7288407009 | AJ28: -0.05324228594 | AK28: 0.7743561441 | AL28: -0.04991403109 | AM28: 0.8198715873 | AN28: -0.04658577624 | AO28: 0.8653870305 | AP28: -0.04325752139 | AQ28: 0.9109024737 | AR28: -0.03992926655 | AS28: 0.9564179169 | AT28: -0.0366010117 | AU28: 1.183995133 | AV28: -0.01995973746
B29: 18 | C29: 0.0235467362 | D29: -0.3028383649 | E29: 0.04709347241 | F29: -0.1056767297 | G29: 0.09290652642 | H29: -0.1031414112 | I29: 0.1387195804 | J29: -0.1006060926 | K29: 0.1845326345 | L29: -0.09807077406 | M29: 0.2303456885 | N29: -0.0955354555 | O29: 0.2761587425 | P29: -0.09300013695 | Q29: 0.3219717965 | R29: -0.09046481839 | S29: 0.3677848505 | T29: -0.08792949983 | U29: 0.4135979045 | V29: -0.08539418127 | W29: 0.4594109586 | X29: -0.08285886271 | Y29: 0.5052240126 | Z29: -0.08032354415 | AA29: 0.5510370666 | AB29: -0.07778822559 | AC29: 0.5968501206 | AD29: -0.07525290703 | AE29: 0.6426631746 | AF29: -0.07271758847 | AG29: 0.6884762286 | AH29: -0.07018226991 | AI29: 0.7342892827 | AJ29: -0.06764695135 | AK29: 0.7801023367 | AL29: -0.06511163279 | AM29: 0.8259153907 | AN29: -0.06257631423 | AO29: 0.8717284447 | AP29: -0.06004099567 | AQ29: 0.9175414987 | AR29: -0.05750567711 | AS29: 0.9633545527 | AT29: -0.05497035855 | AU29: 1.192419823 | AV29: -0.04229376575
B30: 19 | C30: 0.02401270494 | D30: -0.3040275842 | E30: 0.04802540988 | F30: -0.1080551684 | G30: 0.0939735559 | H30: -0.1059516332 | I30: 0.1399217019 | J30: -0.1038480981 | K30: 0.1858698479 | L30: -0.1017445629 | M30: 0.231817994 | N30: -0.09964102777 | O30: 0.27776614 | P30: -0.09753749262 | Q30: 0.323714286 | R30: -0.09543395746 | S30: 0.369662432 | T30: -0.09333042231 | U30: 0.4156105781 | V30: -0.09122688716 | W30: 0.4615587241 | X30: -0.089123352 | Y30: 0.5075068701 | Z30: -0.08701981685 | AA30: 0.5534550161 | AB30: -0.0849162817 | AC30: 0.5994031622 | AD30: -0.08281274654 | AE30: 0.6453513082 | AF30: -0.08070921139 | AG30: 0.6912994542 | AH30: -0.07860567623 | AI30: 0.7372476002 | AJ30: -0.07650214108 | AK30: 0.7831957462 | AL30: -0.07439860593 | AM30: 0.8291438923 | AN30: -0.07229507077 | AO30: 0.8750920383 | AP30: -0.07019153562 | AQ30: 0.9210401843 | AR30: -0.06808800047 | AS30: 0.9669883303 | AT30: -0.06598446531 | AU30: 1.19672906 | AV30: -0.05546678954
B31: 20 | C31: 0.02453820116 | D31: -0.3053856623 | E31: 0.04907640231 | F31: -0.1107713246 | G31: 0.09499650125 | H31: -0.1087370415 | I31: 0.1409166002 | J31: -0.1067027585 | K31: 0.1868366991 | L31: -0.1046684754 | M31: 0.232756798 | N31: -0.1026341923 | O31: 0.278676897 | P31: -0.1005999092 | Q31: 0.3245969959 | R31: -0.09856562615 | S31: 0.3705170948 | T31: -0.09653134308 | U31: 0.4164371938 | V31: -0.09449706 | W31: 0.4623572927 | X31: -0.09246277692 | Y31: 0.5082773916 | Z31: -0.09042849385 | AA31: 0.5541974906 | AB31: -0.08839421077 | AC31: 0.6001175895 | AD31: -0.0863599277 | AE31: 0.6460376884 | AF31: -0.08432564462 | AG31: 0.6919577874 | AH31: -0.08229136154 | AI31: 0.7378778863 | AJ31: -0.08025707847 | AK31: 0.7837979852 | AL31: -0.07822279539 | AM31: 0.8297180841 | AN31: -0.07618851231 | AO31: 0.8756381831 | AP31: -0.07415422924 | AQ31: 0.921558282 | AR31: -0.07211994616 | AS31: 0.9674783809 | AT31: -0.07008566309 | AU31: 1.197078876 | AV31: -0.05991424771
B32: 21 | C32: 0.02510057669 | D32: -0.3068505494 | E32: 0.05020115339 | F32: -0.1137010989 | G32: 0.09609320523 | H32: -0.1117360679 | I32: 0.1419852571 | J32: -0.1097710369 | K32: 0.1878773089 | L32: -0.1078060059 | M32: 0.2337693608 | N32: -0.1058409749 | O32: 0.2796614126 | P32: -0.1038759439 | Q32: 0.3255534644 | R32: -0.1019109129 | S32: 0.3714455163 | T32: -0.09994588189 | U32: 0.4173375681 | V32: -0.09798085089 | W32: 0.46322962 | X32: -0.09601581989 | Y32: 0.5091216718 | Z32: -0.0940507889 | AA32: 0.5550137236 | AB32: -0.0920857579 | AC32: 0.6009057755 | AD32: -0.0901207269 | AE32: 0.6467978273 | AF32: -0.0881556959 | AG32: 0.6926898792 | AH32: -0.0861906649 | AI32: 0.738581931 | AJ32: -0.0842256339 | AK32: 0.7844739828 | AL32: -0.0822606029 | AM32: 0.8303660347 | AN32: -0.08029557191 | AO32: 0.8762580865 | AP32: -0.07833054091 | AQ32: 0.9221501384 | AR32: -0.07636550991 | AS32: 0.9680421902 | AT32: -0.07440047891 | AU32: 1.197502449 | AV32: -0.06457532392
B33: 22 | C33: 0.02563012822 | D33: -0.3082312776 | E33: 0.05126025644 | F33: -0.1164625551 | G33: 0.09712426119 | H33: -0.1145667762 | I33: 0.1429882659 | J33: -0.1126709973 | K33: 0.1888522707 | L33: -0.1107752184 | M33: 0.2347162754 | N33: -0.1088794394 | O33: 0.2805802802 | P33: -0.1069836605 | Q33: 0.3264442849 | R33: -0.1050878816 | S33: 0.3723082897 | T33: -0.1031921027 | U33: 0.4181722944 | V33: -0.1012963238 | W33: 0.4640362992 | X33: -0.09940054484 | Y33: 0.5099003039 | Z33: -0.09750476592 | AA33: 0.5557643087 | AB33: -0.095608987 | AC33: 0.6016283134 | AD33: -0.09371320808 | AE33: 0.6474923182 | AF33: -0.09181742916 | AG33: 0.6933563229 | AH33: -0.08992165023 | AI33: 0.7392203277 | AJ33: -0.08802587131 | AK33: 0.7850843324 | AL33: -0.08613009239 | AM33: 0.8309483372 | AN33: -0.08423431347 | AO33: 0.8768123419 | AP33: -0.08233853455 | AQ33: 0.9226763467 | AR33: -0.08044275563 | AS33: 0.9685403514 | AT33: -0.07854697671 | AU33: 1.197860375 | AV33: -0.0690680821
B34: 23 | C34: 0.02624350959 | D34: -0.3098564491 | E34: 0.05248701917 | F34: -0.1197128982 | G34: 0.09832297683 | H34: -0.1178863713 | I34: 0.1441589345 | J34: -0.1160598445 | K34: 0.1899948921 | L34: -0.1142333176 | M34: 0.2358308498 | N34: -0.1124067908 | O34: 0.2816668075 | P34: -0.110580264 | Q34: 0.3275027651 | R34: -0.1087537371 | S34: 0.3733387228 | T34: -0.1069272103 | U34: 0.4191746804 | V34: -0.1051006834 | W34: 0.4650106381 | X34: -0.1032741566 | Y34: 0.5108465957 | Z34: -0.1014476297 | AA34: 0.5566825534 | AB34: -0.09962110289 | AC34: 0.6025185111 | AD34: -0.09779457605 | AE34: 0.6483544687 | AF34: -0.09596804921 | AG34: 0.6941904264 | AH34: -0.09414152236 | AI34: 0.740026384 | AJ34: -0.09231499552 | AK34: 0.7858623417 | AL34: -0.09048846868 | AM34: 0.8316982993 | AN34: -0.08866194183 | AO34: 0.877534257 | AP34: -0.08683541499 | AQ34: 0.9233702147 | AR34: -0.08500888815 | AS34: 0.9692061723 | AT34: -0.0831823613 | AU34: 1.198385961 | AV34: -0.07404972708
B35: 24 | C35: 0.02686098546 | D35: -0.3115014562 | E35: 0.05372197093 | F35: -0.1230029124 | G35: 0.09952988149 | H35: -0.1212456376 | I35: 0.1453377921 | J35: -0.1194883629 | K35: 0.1911457026 | L35: -0.1177310881 | M35: 0.2369536132 | N35: -0.1159738133 | O35: 0.2827615238 | P35: -0.1142165386 | Q35: 0.3285694343 | R35: -0.1124592638 | S35: 0.3743773449 | T35: -0.110701989 | U35: 0.4201852555 | V35: -0.1089447143 | W35: 0.465993166 | X35: -0.1071874395 | Y35: 0.5118010766 | Z35: -0.1054301648 | AA35: 0.5576089872 | AB35: -0.10367289 | AC35: 0.6034168977 | AD35: -0.1019156152 | AE35: 0.6492248083 | AF35: -0.1001583405 | AG35: 0.6950327188 | AH35: -0.09840106569 | AI35: 0.7408406294 | AJ35: -0.09664379092 | AK35: 0.78664854 | AL35: -0.09488651616 | AM35: 0.8324564505 | AN35: -0.09312924139 | AO35: 0.8782643611 | AP35: -0.09137196662 | AQ35: 0.9240722717 | AR35: -0.08961469186 | AS35: 0.9698801822 | AT35: -0.08785741709 | AU35: 1.198919735 | AV35: -0.07907104326
B36: 25 | C36: 0.02748388312 | D36: -0.3131731653 | E36: 0.05496776625 | F36: -0.1263463305 | G36: 0.1007476297 | H36: -0.1246583078 | I36: 0.1465274932 | J36: -0.1229702851 | K36: 0.1923073567 | L36: -0.1212822624 | M36: 0.2380872201 | N36: -0.1195942398 | O36: 0.2838670836 | P36: -0.1179062171 | Q36: 0.3296469471 | R36: -0.1162181944 | S36: 0.3754268106 | T36: -0.1145301717 | U36: 0.421206674 | V36: -0.112842149 | W36: 0.4669865375 | X36: -0.1111541263 | Y36: 0.512766401 | Z36: -0.1094661036 | AA36: 0.5585462645 | AB36: -0.1077780809 | AC36: 0.6043261279 | AD36: -0.1060900583 | AE36: 0.6501059914 | AF36: -0.1044020356 | AG36: 0.6958858549 | AH36: -0.1027140129 | AI36: 0.7416657184 | AJ36: -0.1010259902 | AK36: 0.7874455818 | AL36: -0.0993379675 | AM36: 0.8332254453 | AN36: -0.09764994481 | AO36: 0.8790053088 | AP36: -0.09596192212 | AQ36: 0.9247851723 | AR36: -0.09427389944 | AS36: 0.9705650357 | AT36: -0.09258587675 | AU36: 1.199464353 | AV36: -0.08414576331
B37: 26 | C37: 0.02818635194 | D37: -0.3150860059 | E37: 0.05637270387 | F37: -0.1301720117 | G37: 0.1021245203 | H37: -0.1285532411 | I37: 0.1478763366 | J37: -0.1269344705 | K37: 0.193628153 | L37: -0.1253156999 | M37: 0.2393799694 | N37: -0.1236969293 | O37: 0.2851317858 | P37: -0.1220781587 | Q37: 0.3308836022 | R37: -0.1204593881 | S37: 0.3766354186 | T37: -0.1188406175 | U37: 0.4223872349 | V37: -0.1172218469 | W37: 0.4681390513 | X37: -0.1156030762 | Y37: 0.5138908677 | Z37: -0.1139843056 | AA37: 0.5596426841 | AB37: -0.112365535 | AC37: 0.6053945005 | AD37: -0.1107467644 | AE37: 0.6511463169 | AF37: -0.1091279938 | AG37: 0.6968981332 | AH37: -0.1075092232 | AI37: 0.7426499496 | AJ37: -0.1058904526 | AK37: 0.788401766 | AL37: -0.104271682 | AM37: 0.8341535824 | AN37: -0.1026529114 | AO37: 0.8799053988 | AP37: -0.1010341408 | AQ37: 0.9256572151 | AR37: -0.09941537014 | AS37: 0.9714090315 | AT37: -0.09779659953 | AU37: 1.200168113 | AV37: -0.08970274648
B38: 27 | C38: 0.02885982456 | D38: -0.3169268247 | E38: 0.05771964913 | F38: -0.1338536494 | G38: 0.1034434184 | H38: -0.1323041308 | I38: 0.1491671877 | J38: -0.1307546123 | K38: 0.194890957 | L38: -0.1292050938 | M38: 0.2406147263 | N38: -0.1276555752 | O38: 0.2863384956 | P38: -0.1261060567 | Q38: 0.3320622649 | R38: -0.1245565382 | S38: 0.3777860342 | T38: -0.1230070196 | U38: 0.4235098035 | V38: -0.1214575011 | W38: 0.4692335728 | X38: -0.1199079826 | Y38: 0.514957342 | Z38: -0.118358464 | AA38: 0.5606811113 | AB38: -0.1168089455 | AC38: 0.6064048806 | AD38: -0.115259427 | AE38: 0.6521286499 | AF38: -0.1137099084 | AG38: 0.6978524192 | AH38: -0.1121603899 | AI38: 0.7435761885 | AJ38: -0.1106108714 | AK38: 0.7892999578 | AL38: -0.1090613528 | AM38: 0.8350237271 | AN38: -0.1075118343 | AO38: 0.8807474964 | AP38: -0.1059623158 | AQ38: 0.9264712657 | AR38: -0.1044127972 | AS38: 0.972195035 | AT38: -0.1028632787 | AU38: 1.200813881 | AV38: -0.09511568603
B39: 28 | C39: 0.02963809638 | D39: -0.3190950109 | E39: 0.05927619277 | F39: -0.1381900217 | G39: 0.104971915 | H39: -0.1367097553 | I39: 0.1506676372 | J39: -0.1352294888 | K39: 0.1963633594 | L39: -0.1337492224 | M39: 0.2420590816 | N39: -0.1322689559 | O39: 0.2877548038 | P39: -0.1307886894 | Q39: 0.333450526 | R39: -0.129308423 | S39: 0.3791462482 | T39: -0.1278281565 | U39: 0.4248419704 | V39: -0.1263478901 | W39: 0.4705376926 | X39: -0.1248676236 | Y39: 0.5162334148 | Z39: -0.1233873572 | AA39: 0.561929137 | AB39: -0.1219070907 | AC39: 0.6076248592 | AD39: -0.1204268243 | AE39: 0.6533205814 | AF39: -0.1189465578 | AG39: 0.6990163036 | AH39: -0.1174662913 | AI39: 0.7447120258 | AJ39: -0.1159860249 | AK39: 0.790407748 | AL39: -0.1145057584 | AM39: 0.8361034702 | AN39: -0.113025492 | AO39: 0.8817991924 | AP39: -0.1115452255 | AQ39: 0.9274949146 | AR39: -0.1100649591 | AS39: 0.9731906368 | AT39: -0.1085846926 | AU39: 1.201669248 | AV39: -0.1011833603
B40: 29 | C40: 0.03039361356 | D40: -0.3212128167 | E40: 0.06078722713 | F40: -0.1424256335 | G40: 0.1064549022 | H40: -0.1410146191 | I40: 0.1521225773 | J40: -0.1396036047 | K40: 0.1977902525 | L40: -0.1381925904 | M40: 0.2434579276 | N40: -0.136781576 | O40: 0.2891256027 | P40: -0.1353705616 | Q40: 0.3347932778 | R40: -0.1339595472 | S40: 0.3804609529 | T40: -0.1325485328 | U40: 0.426128628 | V40: -0.1311375185 | W40: 0.4717963031 | X40: -0.1297265041 | Y40: 0.5174639782 | Z40: -0.1283154897 | AA40: 0.5631316533 | AB40: -0.1269044753 | AC40: 0.6087993284 | AD40: -0.125493461 | AE40: 0.6544670035 | AF40: -0.1240824466 | AG40: 0.7001346786 | AH40: -0.1226714322 | AI40: 0.7458023538 | AJ40: -0.1212604178 | AK40: 0.7914700289 | AL40: -0.1198494034 | AM40: 0.837137704 | AN40: -0.1184383891 | AO40: 0.8828053791 | AP40: -0.1170273747 | AQ40: 0.9284730542 | AR40: -0.1156163603 | AS40: 0.9741407293 | AT40: -0.1142053459 | AU40: 1.202479105 | AV40: -0.107150274
B41: 30 | C41: 0.03123482455 | D41: -0.3236128043 | E41: 0.0624696491 | F41: -0.1472256086 | G41: 0.1081092771 | H41: -0.1458838463 | I41: 0.1537489051 | J41: -0.144542084 | K41: 0.1993885332 | L41: -0.1432003217 | M41: 0.2450281612 | N41: -0.1418585594 | O41: 0.2906677892 | P41: -0.1405167971 | Q41: 0.3363074172 | R41: -0.1391750348 | S41: 0.3819470452 | T41: -0.1378332725 | U41: 0.4275866732 | V41: -0.1364915102 | W41: 0.4732263013 | X41: -0.1351497479 | Y41: 0.5188659293 | Z41: -0.1338079856 | AA41: 0.5645055573 | AB41: -0.1324662233 | AC41: 0.6101451853 | AD41: -0.131124461 | AE41: 0.6557848133 | AF41: -0.1297826987 | AG41: 0.7014244413 | AH41: -0.1284409364 | AI41: 0.7470640694 | AJ41: -0.1270991741 | AK41: 0.7927036974 | AL41: -0.1257574118 | AM41: 0.8383433254 | AN41: -0.1244156495 | AO41: 0.8839829534 | AP41: -0.1230738872 | AQ41: 0.9296225814 | AR41: -0.1217321249 | AS41: 0.9752622095 | AT41: -0.1203903626 | AU41: 1.20346035 | AV41: -0.1136815511
B42: 31 | C42: 0.03209892696 | D42: -0.3261095902 | E42: 0.06419785392 | F42: -0.1522191804 | G42: 0.1098094349 | H42: -0.1509466702 | I42: 0.1554210158 | J42: -0.14967416 | K42: 0.2010325967 | L42: -0.1484016498 | M42: 0.2466441776 | N42: -0.1471291395 | O42: 0.2922557586 | P42: -0.1458566293 | Q42: 0.3378673395 | R42: -0.1445841191 | S42: 0.3834789204 | T42: -0.1433116089 | U42: 0.4290905013 | V42: -0.1420390987 | W42: 0.4747020823 | X42: -0.1407665884 | Y42: 0.5203136632 | Z42: -0.1394940782 | AA42: 0.5659252441 | AB42: -0.138221568 | AC42: 0.611536825 | AD42: -0.1369490578 | AE42: 0.657148406 | AF42: -0.1356765475 | AG42: 0.7027599869 | AH42: -0.1344040373 | AI42: 0.7483715678 | AJ42: -0.1331315271 | AK42: 0.7939831487 | AL42: -0.1318590169 | AM42: 0.8395947297 | AN42: -0.1305865066 | AO42: 0.8852063106 | AP42: -0.1293139964 | AQ42: 0.9308178915 | AR42: -0.1280414862 | AS42: 0.9764294724 | AT42: -0.126768976 | AU42: 1.204487377 | AV42: -0.1204064249
B43: 32 | C43: 0.03298705528 | D43: -0.328706776 | E43: 0.06597411056 | F43: -0.1574135519 | G43: 0.1115576444 | H43: -0.1562102938 | I43: 0.1571411782 | J43: -0.1550070356 | K43: 0.2027247121 | L43: -0.1538037775 | M43: 0.2483082459 | N43: -0.1526005194 | O43: 0.2938917797 | P43: -0.1513972612 | Q43: 0.3394753136 | R43: -0.1501940031 | S43: 0.3850588474 | T43: -0.1489907449 | U43: 0.4306423812 | V43: -0.1477874868 | W43: 0.4762259151 | X43: -0.1465842286 | Y43: 0.5218094489 | Z43: -0.1453809705 | AA43: 0.5673929827 | AB43: -0.1441777123 | AC43: 0.6129765166 | AD43: -0.1429744542 | AE43: 0.6585600504 | AF43: -0.141771196 | AG43: 0.7041435842 | AH43: -0.1405679379 | AI43: 0.7497271181 | AJ43: -0.1393646798 | AK43: 0.7953106519 | AL43: -0.1381614216 | AM43: 0.8408941857 | AN43: -0.1369581635 | AO43: 0.8864777196 | AP43: -0.1357549053 | AQ43: 0.9320612534 | AR43: -0.1345516472 | AS43: 0.9776447872 | AT43: -0.133348389 | AU43: 1.205562456 | AV43: -0.1273320983
B44: 33 | C44: 0.03397305895 | D44: -0.3316564331 | E44: 0.0679461179 | F44: -0.1633128663 | G44: 0.1135016046 | H44: -0.1621788602 | I44: 0.1590570914 | J44: -0.1610448542 | K44: 0.2046125781 | L44: -0.1599108481 | M44: 0.2501680649 | N44: -0.158776842 | O44: 0.2957235516 | P44: -0.157642836 | Q44: 0.3412790384 | R44: -0.1565088299 | S44: 0.3868345251 | T44: -0.1553748238 | U44: 0.4323900118 | V44: -0.1542408177 | W44: 0.4779454986 | X44: -0.1531068117 | Y44: 0.5235009853 | Z44: -0.1519728056 | AA44: 0.5690564721 | AB44: -0.1508387995 | AC44: 0.6146119588 | AD44: -0.1497047935 | AE44: 0.6601674456 | AF44: -0.1485707874 | AG44: 0.7057229323 | AH44: -0.1474367813 | AI44: 0.751278419 | AJ44: -0.1463027753 | AK44: 0.7968339058 | AL44: -0.1451687692 | AM44: 0.8423893925 | AN44: -0.1440347631 | AO44: 0.8879448793 | AP44: -0.1429007571 | AQ44: 0.933500366 | AR44: -0.141766751 | AS44: 0.9790558528 | AT44: -0.1406327449 | AU44: 1.206833286 | AV44: -0.1349627146
B45: 34 | C45: 0.03499141283 | D45: -0.3347533753 | E45: 0.06998282565 | F45: -0.1695067507 | G45: 0.1155102653 | H45: -0.1684419967 | I45: 0.161037705 | J45: -0.1673772427 | K45: 0.2065651446 | L45: -0.1663124887 | M45: 0.2520925843 | N45: -0.1652477347 | O45: 0.2976200239 | P45: -0.1641829807 | Q45: 0.3431474636 | R45: -0.1631182268 | S45: 0.3886749032 | T45: -0.1620534728 | U45: 0.4342023429 | V45: -0.1609887188 | W45: 0.4797297825 | X45: -0.1599239648 | Y45: 0.5252572222 | Z45: -0.1588592108 | AA45: 0.5707846618 | AB45: -0.1577944568 | AC45: 0.6163121015 | AD45: -0.1567297028 | AE45: 0.6618395411 | AF45: -0.1556649488 | AG45: 0.7073669808 | AH45: -0.1546001948 | AI45: 0.7528944204 | AJ45: -0.1535354408 | AK45: 0.7984218601 | AL45: -0.1524706869 | AM45: 0.8439492997 | AN45: -0.1514059329 | AO45: 0.8894767394 | AP45: -0.1503411789 | AQ45: 0.935004179 | AR45: -0.1492764249 | AS45: 0.9805316187 | AT45: -0.1482116709 | AU45: 1.208168817 | AV45: -0.1428879009
B46: 35 | C46: 0.03605825421 | D46: -0.3380599684 | E46: 0.07211650843 | F46: -0.1761199369 | G46: 0.117615901 | H46: -0.175124435 | I46: 0.1631152935 | J46: -0.1741289331 | K46: 0.2086146861 | L46: -0.1731334312 | M46: 0.2541140787 | N46: -0.1721379292 | O46: 0.2996134712 | P46: -0.1711424273 | Q46: 0.3451128638 | R46: -0.1701469254 | S46: 0.3906122563 | T46: -0.1691514235 | U46: 0.4361116489 | V46: -0.1681559216 | W46: 0.4816110415 | X46: -0.1671604197 | Y46: 0.527110434 | Z46: -0.1661649178 | AA46: 0.5726098266 | AB46: -0.1651694159 | AC46: 0.6181092192 | AD46: -0.1641739139 | AE46: 0.6636086117 | AF46: -0.163178412 | AG46: 0.7091080043 | AH46: -0.1621829101 | AI46: 0.7546073968 | AJ46: -0.1611874082 | AK46: 0.8001067894 | AL46: -0.1601919063 | AM46: 0.845606182 | AN46: -0.1591964044 | AO46: 0.8911055745 | AP46: -0.1582009025 | AQ46: 0.9366049671 | AR46: -0.1572054006 | AS46: 0.9821043596 | AT46: -0.1562098986 | AU46: 1.209601322 | AV46: -0.1512323891
B47: 36 | C47: 0.03718639276 | D47: -0.3416347442 | E47: 0.07437278551 | F47: -0.1832694884 | G47: 0.119844131 | H47: -0.1823432386 | I47: 0.1653154765 | J47: -0.1814169887 | K47: 0.2107868219 | L47: -0.1804907389 | M47: 0.2562581674 | N47: -0.1795644891 | O47: 0.3017295129 | P47: -0.1786382392 | Q47: 0.3472008583 | R47: -0.1777119894 | S47: 0.3926722038 | T47: -0.1767857396 | U47: 0.4381435493 | V47: -0.1758594897 | W47: 0.4836148947 | X47: -0.1749332399 | Y47: 0.5290862402 | Z47: -0.1740069901 | AA47: 0.5745575857 | AB47: -0.1730807402 | AC47: 0.6200289311 | AD47: -0.1721544904 | AE47: 0.6655002766 | AF47: -0.1712282406 | AG47: 0.7109716221 | AH47: -0.1703019907 | AI47: 0.7564429675 | AJ47: -0.1693757409 | AK47: 0.801914313 | AL47: -0.1684494911 | AM47: 0.8473856585 | AN47: -0.1675232412 | AO47: 0.892857004 | AP47: -0.1665969914 | AQ47: 0.9383283494 | AR47: -0.1656707415 | AS47: 0.9837996949 | AT47: -0.1647444917 | AU47: 1.211156422 | AV47: -0.1601132425
B48: 37 | C48: 0.03838698148 | D48: -0.3455357069 | E48: 0.07677396295 | F48: -0.1910714138 | G48: 0.1222172613 | H48: -0.190214416 | I48: 0.1676605597 | J48: -0.1893574182 | K48: 0.2131038581 | L48: -0.1885004205 | M48: 0.2585471565 | N48: -0.1876434227 | O48: 0.3039904548 | P48: -0.186786425 | Q48: 0.3494337532 | R48: -0.1859294272 | S48: 0.3948770516 | T48: -0.1850724294 | U48: 0.44032035 | V48: -0.1842154317 | W48: 0.4857636484 | X48: -0.1833584339 | Y48: 0.5312069467 | Z48: -0.1825014362 | AA48: 0.5766502451 | AB48: -0.1816444384 | AC48: 0.6220935435 | AD48: -0.1807874407 | AE48: 0.6675368419 | AF48: -0.1799304429 | AG48: 0.7129801402 | AH48: -0.1790734451 | AI48: 0.7584234386 | AJ48: -0.1782164474 | AK48: 0.803866737 | AL48: -0.1773594496 | AM48: 0.8493100354 | AN48: -0.1765024519 | AO48: 0.8947533337 | AP48: -0.1756454541 | AQ48: 0.9401966321 | AR48: -0.1747884564 | AS48: 0.9856399305 | AT48: -0.1739314586 | AU48: 1.212856422 | AV48: -0.1696464698
B49: 38 | C49: 0.03966460649 | D49: -0.3498071961 | E49: 0.07932921298 | F49: -0.1996143922 | G49: 0.1247444643 | H49: -0.1988266465 | I49: 0.1701597156 | J49: -0.1980389009 | K49: 0.2155749668 | L49: -0.1972511552 | M49: 0.2609902181 | N49: -0.1964634095 | O49: 0.3064054694 | P49: -0.1956756638 | Q49: 0.3518207207 | R49: -0.1948879181 | S49: 0.397235972 | T49: -0.1941001725 | U49: 0.4426512233 | V49: -0.1933124268 | W49: 0.4880664746 | X49: -0.1925246811 | Y49: 0.5334817258 | Z49: -0.1917369354 | AA49: 0.5788969771 | AB49: -0.1909491897 | AC49: 0.6243122284 | AD49: -0.1901614441 | AE49: 0.6697274797 | AF49: -0.1893736984 | AG49: 0.715142731 | AH49: -0.1885859527 | AI49: 0.7605579823 | AJ49: -0.187798207 | AK49: 0.8059732336 | AL49: -0.1870104613 | AM49: 0.8513884848 | AN49: -0.1862227157 | AO49: 0.8968037361 | AP49: -0.18543497 | AQ49: 0.9422189874 | AR49: -0.1846472243 | AS49: 0.9876342387 | AT49: -0.1838594786 | AU49: 1.214710495 | AV49: -0.1799207502
B50: 39 | C50: 0.04102152355 | D50: -0.3544892739 | E50: 0.0820430471 | F50: -0.2089785479 | G50: 0.1274302513 | H50: -0.2082600543 | I50: 0.1728174555 | J50: -0.2075415607 | K50: 0.2182046597 | L50: -0.2068230671 | M50: 0.2635918639 | N50: -0.2061045735 | O50: 0.3089790681 | P50: -0.2053860798 | Q50: 0.3543662723 | R50: -0.2046675862 | S50: 0.3997534765 | T50: -0.2039490926 | U50: 0.4451406807 | V50: -0.203230599 | W50: 0.4905278849 | X50: -0.2025121054 | Y50: 0.535915089 | Z50: -0.2017936118 | AA50: 0.5813022932 | AB50: -0.2010751182 | AC50: 0.6266894974 | AD50: -0.2003566246 | AE50: 0.6720767016 | AF50: -0.199638131 | AG50: 0.7174639058 | AH50: -0.1989196374 | AI50: 0.76285111 | AJ50: -0.1982011438 | AK50: 0.8082383142 | AL50: -0.1974826502 | AM50: 0.8536255184 | AN50: -0.1967641566 | AO50: 0.8990127226 | AP50: -0.196045663 | AQ50: 0.9443999268 | AR50: -0.1953271694 | AS50: 0.989787131 | AT50: -0.1946086758 | AU50: 1.216723152 | AV50: -0.1910162078
B51: 40 | C51: 0.04245411756 | D51: -0.3596072949 | E51: 0.08490823512 | F51: -0.2192145898 | G51: 0.1302673922 | H51: -0.2185653483 | I51: 0.1756265493 | J51: -0.2179161068 | K51: 0.2209857064 | L51: -0.2172668653 | M51: 0.2663448635 | N51: -0.2166176237 | O51: 0.3117040206 | P51: -0.2159683822 | Q51: 0.3570631777 | R51: -0.2153191407 | S51: 0.4024223348 | T51: -0.2146698992 | U51: 0.4477814919 | V51: -0.2140206576 | W51: 0.493140649 | X51: -0.2133714161 | Y51: 0.5384998061 | Z51: -0.2127221746 | AA51: 0.5838589633 | AB51: -0.2120729331 | AC51: 0.6292181204 | AD51: -0.2114236915 | AE51: 0.6745772775 | AF51: -0.21077445 | AG51: 0.7199364346 | AH51: -0.2101252085 | AI51: 0.7652955917 | AJ51: -0.209475967 | AK51: 0.8106547488 | AL51: -0.2088267254 | AM51: 0.8560139059 | AN51: -0.2081774839 | AO51: 0.901373063 | AP51: -0.2075282424 | AQ51: 0.9467322201 | AR51: -0.2068790009 | AS51: 0.9920913772 | AT51: -0.2062297593 | AU51: 1.218887163 | AV51: -0.2029835517
B52: 41 | C52: 0.04395546922 | D52: -0.365176936 | E52: 0.08791093844 | F52: -0.230353872 | G52: 0.1332420485 | H52: -0.2297738826 | I52: 0.1785731585 | J52: -0.2291938932 | K52: 0.2239042685 | L52: -0.2286139037 | M52: 0.2692353785 | N52: -0.2280339143 | O52: 0.3145664885 | P52: -0.2274539248 | Q52: 0.3598975985 | R52: -0.2268739354 | S52: 0.4052287085 | T52: -0.2262939459 | U52: 0.4505598185 | V52: -0.2257139565 | W52: 0.4958909285 | X52: -0.225133967 | Y52: 0.5412220386 | Z52: -0.2245539776 | AA52: 0.5865531486 | AB52: -0.2239739881 | AC52: 0.6318842586 | AD52: -0.2233939987 | AE52: 0.6772153686 | AF52: -0.2228140092 | AG52: 0.7225464786 | AH52: -0.2222340198 | AI52: 0.7678775886 | AJ52: -0.2216540303 | AK52: 0.8132086986 | AL52: -0.2210740409 | AM52: 0.8585398086 | AN52: -0.2204940514 | AO52: 0.9038709187 | AP52: -0.219914062 | AQ52: 0.9492020287 | AR52: -0.2193340726 | AS52: 0.9945331387 | AT52: -0.2187540831 | AU52: 1.221188689 | AV52: -0.2158541359
B53: 42 | C53: 0.04557282435 | D53: -0.3714881806 | E53: 0.09114564869 | F53: -0.2429763611 | G53: 0.1364487116 | H53: -0.2424656238 | I53: 0.1817517745 | J53: -0.2419548864 | K53: 0.2270548375 | L53: -0.241444149 | M53: 0.2723579004 | N53: -0.2409334116 | O53: 0.3176609633 | P53: -0.2404226743 | Q53: 0.3629640262 | R53: -0.2399119369 | S53: 0.4082670891 | T53: -0.2394011995 | U53: 0.4535701521 | V53: -0.2388904622 | W53: 0.498873215 | X53: -0.2383797248 | Y53: 0.5441762779 | Z53: -0.2378689874 | AA53: 0.5894793408 | AB53: -0.2373582501 | AC53: 0.6347824037 | AD53: -0.2368475127 | AE53: 0.6800854667 | AF53: -0.2363367753 | AG53: 0.7253885296 | AH53: -0.2358260379 | AI53: 0.7706915925 | AJ53: -0.2353153006 | AK53: 0.8159946554 | AL53: -0.2348045632 | AM53: 0.8612977183 | AN53: -0.2342938258 | AO53: 0.9066007813 | AP53: -0.2337830885 | AQ53: 0.9519038442 | AR53: -0.2332723511 | AS53: 0.9972069071 | AT53: -0.2327616137 | AU53: 1.223722222 | AV53: -0.2302079269
B54: 43 | C54: 0.04726162485 | D54: -0.3784292777 | E54: 0.09452324971 | F54: -0.2568585553 | G54: 0.1397982655 | H54: -0.25641707 | I54: 0.1850732814 | J54: -0.2559755847 | K54: 0.2303482972 | L54: -0.2555340994 | M54: 0.275623313 | N54: -0.2550926142 | O54: 0.3208983289 | P54: -0.2546511289 | Q54: 0.3661733447 | R54: -0.2542096436 | S54: 0.4114483605 | T54: -0.2537681583 | U54: 0.4567233763 | V54: -0.253326673 | W54: 0.5019983922 | X54: -0.2528851877 | Y54: 0.547273408 | Z54: -0.2524437024 | AA54: 0.5925484238 | AB54: -0.2520022171 | AC54: 0.6378234397 | AD54: -0.2515607318 | AE54: 0.6830984555 | AF54: -0.2511192465 | AG54: 0.7283734713 | AH54: -0.2506777612 | AI54: 0.7736484871 | AJ54: -0.2502362759 | AK54: 0.818923503 | AL54: -0.2497947906 | AM54: 0.8641985188 | AN54: -0.2493533054 | AO54: 0.9094735346 | AP54: -0.2489118201 | AQ54: 0.9547485505 | AR54: -0.2484703348 | AS54: 1.000023566 | AT54: -0.2480288495 | AU54: 1.226398645 | AV54: -0.245821423
B55: 44 | C55: 0.0490403864 | D55: -0.3862272517 | E55: 0.09808077281 | F55: -0.2724545033 | G55: 0.1433277415 | H55: -0.2720822701 | I55: 0.1885747103 | J55: -0.2717100369 | K55: 0.233821679 | L55: -0.2713378037 | M55: 0.2790686478 | N55: -0.2709655705 | O55: 0.3243156165 | P55: -0.2705933373 | Q55: 0.3695625852 | R55: -0.270221104 | S55: 0.414809554 | T55: -0.2698488708 | U55: 0.4600565227 | V55: -0.2694766376 | W55: 0.5053034914 | X55: -0.2691044044 | Y55: 0.5505504602 | Z55: -0.2687321712 | AA55: 0.5957974289 | AB55: -0.268359938 | AC55: 0.6410443977 | AD55: -0.2679877048 | AE55: 0.6862913664 | AF55: -0.2676154715 | AG55: 0.7315383351 | AH55: -0.2672432383 | AI55: 0.7767853039 | AJ55: -0.2668710051 | AK55: 0.8220322726 | AL55: -0.2664987719 | AM55: 0.8672792413 | AN55: -0.2661265387 | AO55: 0.9125262101 | AP55: -0.2657543055 | AQ55: 0.9577731788 | AR55: -0.2653820723 | AS55: 1.003020148 | AT55: -0.265009839 | AU55: 1.229254991 | AV55: -0.263148673
B56: 45 | C56: 0.05090418673 | D56: -0.395070109 | E56: 0.1018083735 | F56: -0.290140218 | G56: 0.1470272951 | H56: -0.2898372368 | I56: 0.1922462167 | J56: -0.2895342557 | K56: 0.2374651384 | L56: -0.2892312746 | M56: 0.28268406 | N56: -0.2889282934 | O56: 0.3279029817 | P56: -0.2886253123 | Q56: 0.3731219033 | R56: -0.2883223312 | S56: 0.418340825 | T56: -0.28801935 | U56: 0.4635597466 | V56: -0.2877163689 | W56: 0.5087786683 | X56: -0.2874133877 | Y56: 0.5539975899 | Z56: -0.2871104066 | AA56: 0.5992165116 | AB56: -0.2868074255 | AC56: 0.6444354332 | AD56: -0.2865044443 | AE56: 0.6896543549 | AF56: -0.2862014632 | AG56: 0.7348732765 | AH56: -0.2858984821 | AI56: 0.7800921981 | AJ56: -0.2855955009 | AK56: 0.8253111198 | AL56: -0.2852925198 | AM56: 0.8705300414 | AN56: -0.2849895387 | AO56: 0.9157489631 | AP56: -0.2846865575 | AQ56: 0.9609678847 | AR56: -0.2843835764 | AS56: 1.006186806 | AT56: -0.2840805952 | AU56: 1.232281415 | AV56: -0.2825656896
B57: 46 | C57: 0.05282512809 | D57: -0.4050932078 | E57: 0.1056502562 | F57: -0.3101864155 | G57: 0.1508411307 | H57: -0.3099526865 | I57: 0.1960320053 | J57: -0.3097189574 | K57: 0.2412228798 | L57: -0.3094852284 | M57: 0.2864137544 | N57: -0.3092514993 | O57: 0.331604629 | P57: -0.3090177702 | Q57: 0.3767955035 | R57: -0.3087840412 | S57: 0.4219863781 | T57: -0.3085503121 | U57: 0.4671772526 | V57: -0.3083165831 | W57: 0.5123681272 | X57: -0.308082854 | Y57: 0.5575590017 | Z57: -0.3078491249 | AA57: 0.6027498763 | AB57: -0.3076153959 | AC57: 0.6479407508 | AD57: -0.3073816668 | AE57: 0.6931316254 | AF57: -0.3071479378 | AG57: 0.7383225 | AH57: -0.3069142087 | AI57: 0.7835133745 | AJ57: -0.3066804796 | AK57: 0.8287042491 | AL57: -0.3064467506 | AM57: 0.8738951236 | AN57: -0.3062130215 | AO57: 0.9190859982 | AP57: -0.3059792925 | AQ57: 0.9642768727 | AR57: -0.3057455634 | AS57: 1.009467747 | AT57: -0.3055118344 | AU57: 1.23542212 | AV57: -0.3043431891
B58: 47 | C58: 0.0547801814 | D58: -0.4166438995 | E58: 0.1095603628 | F58: -0.333287799 | G58: 0.1547231903 | H58: -0.333123322 | I58: 0.1998860177 | J58: -0.3329588451 | K58: 0.2450488452 | L58: -0.3327943681 | M58: 0.2902116727 | N58: -0.3326298911 | O58: 0.3353745001 | P58: -0.3324654141 | Q58: 0.3805373276 | R58: -0.3323009371 | S58: 0.4257001551 | T58: -0.3321364601 | U58: 0.4708629825 | V58: -0.3319719832 | W58: 0.51602581 | X58: -0.3318075062 | Y58: 0.5611886374 | Z58: -0.3316430292 | AA58: 0.6063514649 | AB58: -0.3314785522 | AC58: 0.6515142924 | AD58: -0.3313140752 | AE58: 0.6966771198 | AF58: -0.3311495983 | AG58: 0.7418399473 | AH58: -0.3309851213 | AI58: 0.7870027748 | AJ58: -0.3308206443 | AK58: 0.8321656022 | AL58: -0.3306561673 | AM58: 0.8773284297 | AN58: -0.3304916903 | AO58: 0.9224912571 | AP58: -0.3303272133 | AQ58: 0.9676540846 | AR58: -0.3301627364 | AS58: 1.012816912 | AT58: -0.3299982594 | AU58: 1.238631049 | AV58: -0.3291758745
B59: 48 | C59: 0.05670225247 | D59: -0.4299930341 | E59: 0.1134045049 | F59: -0.3599860681 | G59: 0.1585392853 | H59: -0.3598908432 | I59: 0.2036740657 | J59: -0.3597956183 | K59: 0.2488088461 | L59: -0.3597003934 | M59: 0.2939436264 | N59: -0.3596051685 | O59: 0.3390784068 | P59: -0.3595099436 | Q59: 0.3842131872 | R59: -0.3594147187 | S59: 0.4293479675 | T59: -0.3593194938 | U59: 0.4744827479 | V59: -0.3592242689 | W59: 0.5196175283 | X59: -0.359129044 | Y59: 0.5647523087 | Z59: -0.3590338191 | AA59: 0.609887089 | AB59: -0.3589385942 | AC59: 0.6550218694 | AD59: -0.3588433693 | AE59: 0.7001566498 | AF59: -0.3587481444 | AG59: 0.7452914301 | AH59: -0.3586529195 | AI59: 0.7904262105 | AJ59: -0.3585576946 | AK59: 0.8355609909 | AL59: -0.3584624697 | AM59: 0.8806957713 | AN59: -0.3583672448 | AO59: 0.9258305516 | AP59: -0.3582720199 | AQ59: 0.970965332 | AR59: -0.358176795 | AS59: 1.016100112 | AT59: -0.35808157 | AU59: 1.241774014 | AV59: -0.3576054455
B60: 49 | C60: 0.05849396998 | D60: -0.4457406497 | E60: 0.11698794 | F60: -0.3914812994 | G60: 0.1620946732 | H60: -0.3914553266 | I60: 0.2072014065 | J60: -0.3914293538 | K60: 0.2523081398 | L60: -0.3914033809 | M60: 0.2974148731 | N60: -0.3913774081 | O60: 0.3425216064 | P60: -0.3913514353 | Q60: 0.3876283396 | R60: -0.3913254625 | S60: 0.4327350729 | T60: -0.3912994896 | U60: 0.4778418062 | V60: -0.3912735168 | W60: 0.5229485395 | X60: -0.391247544 | Y60: 0.5680552728 | Z60: -0.3912215712 | AA60: 0.6131620061 | AB60: -0.3911955983 | AC60: 0.6582687393 | AD60: -0.3911696255 | AE60: 0.7033754726 | AF60: -0.3911436527 | AG60: 0.7484822059 | AH60: -0.3911176799 | AI60: 0.7935889392 | AJ60: -0.391091707 | AK60: 0.8386956725 | AL60: -0.3910657342 | AM60: 0.8838024057 | AN60: -0.3910397614 | AO60: 0.928909139 | AP60: -0.3910137885 | AQ60: 0.9740158723 | AR60: -0.3909878157 | AS60: 1.019122606 | AT60: -0.3909618429 | AU60: 1.244656272 | AV60: -0.3908319788
B61: 50 | C61: 0.059962946 | D61: -0.4645027843 | E61: 0.119925892 | F61: -0.4290055685 | G61: 0.1650045782 | H61: -0.4290488478 | I61: 0.2100832644 | J61: -0.429092127 | K61: 0.2551619506 | L61: -0.4291354063 | M61: 0.3002406368 | N61: -0.4291786855 | O61: 0.3453193229 | P61: -0.4292219648 | Q61: 0.3903980091 | R61: -0.429265244 | S61: 0.4354766953 | T61: -0.4293085233 | U61: 0.4805553815 | V61: -0.4293518025 | W61: 0.5256340677 | X61: -0.4293950818 | Y61: 0.5707127539 | Z61: -0.429438361 | AA61: 0.6157914401 | AB61: -0.4294816403 | AC61: 0.6608701263 | AD61: -0.4295249195 | AE61: 0.7059488125 | AF61: -0.4295681988 | AG61: 0.7510274986 | AH61: -0.429611478 | AI61: 0.7961061848 | AJ61: -0.4296547573 | AK61: 0.841184871 | AL61: -0.4296980365 | AM61: 0.8862635572 | AN61: -0.4297413158 | AO61: 0.9313422434 | AP61: -0.429784595 | AQ61: 0.9764209296 | AR61: -0.4298278743 | AS61: 1.021499616 | AT61: -0.4298711535 | AU61: 1.246893047 | AV61: -0.4300875498
B62: 51 | C62: 0.06077749635 | D62: -0.4871855093 | E62: 0.1215549927 | F62: -0.4743710185 | G62: 0.1666056318 | H62: -0.4744835499 | I62: 0.2116562709 | J62: -0.4745960812 | K62: 0.25670691 | L62: -0.4747086125 | M62: 0.3017575491 | N62: -0.4748211438 | O62: 0.3468081882 | P62: -0.4749336752 | Q62: 0.3918588273 | R62: -0.4750462065 | S62: 0.4369094664 | T62: -0.4751587378 | U62: 0.4819601055 | V62: -0.4752712692 | W62: 0.5270107446 | X62: -0.4753838005 | Y62: 0.5720613837 | Z62: -0.4754963318 | AA62: 0.6171120228 | AB62: -0.4756088631 | AC62: 0.6621626619 | AD62: -0.4757213945 | AE62: 0.707213301 | AF62: -0.4758339258 | AG62: 0.7522639401 | AH62: -0.4759464571 | AI62: 0.7973145792 | AJ62: -0.4760589885 | AK62: 0.8423652183 | AL62: -0.4761715198 | AM62: 0.8874158574 | AN62: -0.4762840511 | AO62: 0.9324664965 | AP62: -0.4763965824 | AQ62: 0.9775171356 | AR62: -0.4765091138 | AS62: 1.022567775 | AT62: -0.4766216451 | AU62: 1.24782097 | AV62: -0.4771843017
B63: 52 | C63: 0.06080141594 | D63: -0.4966581881 | E63: 0.1216028319 | F63: -0.4933163761 | G63: 0.1644040349 | H63: -0.4984301606 | I63: 0.2072052379 | J63: -0.503543945 | K63: 0.2500064409 | L63: -0.5086577295 | M63: 0.2928076439 | N63: -0.513771514 | O63: 0.3356088469 | P63: -0.5188852984 | Q63: 0.3784100499 | R63: -0.5239990829 | S63: 0.4212112529 | T63: -0.5291128673 | U63: 0.4640124559 | V63: -0.5342266518 | W63: 0.5068136589 | X63: -0.5393404363 | Y63: 0.5496148619 | Z63: -0.5444542207 | AA63: 0.592416065 | AB63: -0.5495680052 | AC63: 0.635217268 | AD63: -0.5546817897 | AE63: 0.678018471 | AF63: -0.5597955741 | AG63: 0.720819674 | AH63: -0.5649093586 | AI63: 0.763620877 | AJ63: -0.570023143 | AK63: 0.80642208 | AL63: -0.5751369275 | AM63: 0.849223283 | AN63: -0.580250712 | AO63: 0.892024486 | AP63: -0.5853644964 | AQ63: 0.934825689 | AR63: -0.5904782809 | AS63: 0.977626892 | AT63: -0.5955920653 | AU63: 1.191632907 | AV63: -0.6211609876
B64: 53 | C64: 0.06062640512 | D64: -0.5068627968 | E64: 0.1212528102 | F64: -0.5137255936 | G64: 0.1618045772 | H64: -0.5238406311 | I64: 0.2023563441 | J64: -0.5339556687 | K64: 0.242908111 | L64: -0.5440707063 | M64: 0.2834598779 | N64: -0.5541857439 | O64: 0.3240116448 | P64: -0.5643007815 | Q64: 0.3645634117 | R64: -0.5744158191 | S64: 0.4051151787 | T64: -0.5845308567 | U64: 0.4456669456 | V64: -0.5946458943 | W64: 0.4862187125 | X64: -0.6047609319 | Y64: 0.5267704794 | Z64: -0.6148759695 | AA64: 0.5673222463 | AB64: -0.6249910071 | AC64: 0.6078740132 | AD64: -0.6351060447 | AE64: 0.6484257802 | AF64: -0.6452210823 | AG64: 0.6889775471 | AH64: -0.6553361199 | AI64: 0.729529314 | AJ64: -0.6654511575 | AK64: 0.7700810809 | AL64: -0.6755661951 | AM64: 0.8106328478 | AN64: -0.6856812326 | AO64: 0.8511846148 | AP64: -0.6957962702 | AQ64: 0.8917363817 | AR64: -0.7059113078 | AS64: 0.9322881486 | AT64: -0.7160263454 | AU64: 1.135046983 | AV64: -0.7666015334
B65: 54 | C65: 0.06018487136 | D65: -0.5180065062 | E65: 0.1203697427 | F65: -0.5360130124 | G65: 0.1586720736 | H65: -0.5511293031 | I65: 0.1969744044 | J65: -0.5662455938 | K65: 0.2352767352 | L65: -0.5813618846 | M65: 0.273579066 | N65: -0.5964781753 | O65: 0.3118813969 | P65: -0.611594466 | Q65: 0.3501837277 | R65: -0.6267107567 | S65: 0.3884860585 | T65: -0.6418270475 | U65: 0.4267883893 | V65: -0.6569433382 | W65: 0.4650907202 | X65: -0.6720596289 | Y65: 0.503393051 | Z65: -0.6871759197 | AA65: 0.5416953818 | AB65: -0.7022922104 | AC65: 0.5799977126 | AD65: -0.7174085011 | AE65: 0.6183000435 | AF65: -0.7325247918 | AG65: 0.6566023743 | AH65: -0.7476410826 | AI65: 0.6949047051 | AJ65: -0.7627573733 | AK65: 0.733207036 | AL65: -0.777873664 | AM65: 0.7715093668 | AN65: -0.7929899547 | AO65: 0.8098116976 | AP65: -0.8081062455 | AQ65: 0.8481140284 | AR65: -0.8232225362 | AS65: 0.8864163593 | AT65: -0.8383388269 | AU65: 1.077928013 | AV65: -0.9139202806
B66: 55 | C66: 0.05941704158 | D66: -0.5301331689 | E66: 0.1188340832 | F66: -0.5602663378 | G66: 0.1548869779 | H66: -0.5803838816 | I66: 0.1909398726 | J66: -0.6005014255 | K66: 0.2269927674 | L66: -0.6206189693 | M66: 0.2630456621 | N66: -0.6407365132 | O66: 0.2990985568 | P66: -0.6608540571 | Q66: 0.3351514516 | R66: -0.6809716009 | S66: 0.3712043463 | T66: -0.7010891448 | U66: 0.4072572411 | V66: -0.7212066886 | W66: 0.4433101358 | X66: -0.7413242325 | Y66: 0.4793630305 | Z66: -0.7614417764 | AA66: 0.5154159253 | AB66: -0.7815593202 | AC66: 0.55146882 | AD66: -0.8016768641 | AE66: 0.5875217147 | AF66: -0.8217944079 | AG66: 0.6235746095 | AH66: -0.8419119518 | AI66: 0.6596275042 | AJ66: -0.8620294957 | AK66: 0.6956803989 | AL66: -0.8821470395 | AM66: 0.7317332937 | AN66: -0.9022645834 | AO66: 0.7677861884 | AP66: -0.9223821272 | AQ66: 0.8038390832 | AR66: -0.9424996711 | AS66: 0.8398919779 | AT66: -0.962617215 | AU66: 1.020156452 | AV66: -1.063204934
B67: 56 | C67: 0.05823517974 | D67: -0.5433857287 | E67: 0.1164703595 | F67: -0.5867714574 | G67: 0.1502738181 | H67: -0.6118902544 | I67: 0.1840772768 | J67: -0.6370090514 | K67: 0.2178807354 | L67: -0.6621278484 | M67: 0.2516841941 | N67: -0.6872466453 | O67: 0.2854876527 | P67: -0.7123654423 | Q67: 0.3192911114 | R67: -0.7374842393 | S67: 0.35309457 | T67: -0.7626030363 | U67: 0.3868980286 | V67: -0.7877218333 | W67: 0.4207014873 | X67: -0.8128406303 | Y67: 0.4545049459 | Z67: -0.8379594273 | AA67: 0.4883084046 | AB67: -0.8630782243 | AC67: 0.5221118632 | AD67: -0.8881970213 | AE67: 0.5559153219 | AF67: -0.9133158183 | AG67: 0.5897187805 | AH67: -0.9384346153 | AI67: 0.6235222392 | AJ67: -0.9635534123 | AK67: 0.6573256978 | AL67: -0.9886722093 | AM67: 0.6911291565 | AN67: -1.013791006 | AO67: 0.7249326151 | AP67: -1.038909803 | AQ67: 0.7587360738 | AR67: -1.0640286 | AS67: 0.7925395324 | AT67: -1.089147397 | AU67: 0.9615568256 | AV67: -1.214741382
B68: 57 | C68: 0.05650548769 | D68: -0.5580101592 | E68: 0.1130109754 | F68: -0.6160203184 | G68: 0.1445649979 | H68: -0.6461403685 | I68: 0.1761190205 | J68: -0.6762604186 | K68: 0.207673043 | L68: -0.7063804688 | M68: 0.2392270656 | N68: -0.7365005189 | O68: 0.2707810882 | P68: -0.766620569 | Q68: 0.3023351107 | R68: -0.7967406191 | S68: 0.3338891333 | T68: -0.8268606693 | U68: 0.3654431558 | V68: -0.8569807194 | W68: 0.3969971784 | X68: -0.8871007695 | Y68: 0.4285512009 | Z68: -0.9172208196 | AA68: 0.4601052235 | AB68: -0.9473408698 | AC68: 0.4916592461 | AD68: -0.9774609199 | AE68: 0.5232132686 | AF68: -1.00758097 | AG68: 0.5547672912 | AH68: -1.03770102 | AI68: 0.5863213137 | AJ68: -1.06782107 | AK68: 0.6178753363 | AL68: -1.09794112 | AM68: 0.6494293588 | AN68: -1.128061171 | AO68: 0.6809833814 | AP68: -1.158181221 | AQ68: 0.7125374039 | AR68: -1.188301271 | AS68: 0.7440914265 | AT68: -1.218421321 | AU68: 0.9018615393 | AV68: -1.369021572
B69: 58 | C69: 0.05409233806 | D69: -0.5741358538 | E69: 0.1081846761 | F69: -0.6482717075 | G69: 0.1374892626 | H69: -0.6833930108 | I69: 0.1667938491 | J69: -0.718514314 | K69: 0.1960984355 | L69: -0.7536356173 | M69: 0.225403022 | N69: -0.7887569205 | O69: 0.2547076085 | P69: -0.8238782238 | Q69: 0.2840121949 | R69: -0.8589995271 | S69: 0.3133167814 | T69: -0.8941208303 | U69: 0.3426213679 | V69: -0.9292421336 | W69: 0.3719259543 | X69: -0.9643634368 | Y69: 0.4012305408 | Z69: -0.9994847401 | AA69: 0.4305351273 | AB69: -1.034606043 | AC69: 0.4598397137 | AD69: -1.069727347 | AE69: 0.4891443002 | AF69: -1.10484865 | AG69: 0.5184488867 | AH69: -1.139969953 | AI69: 0.5477534731 | AJ69: -1.175091256 | AK69: 0.5770580596 | AL69: -1.21021256 | AM69: 0.6063626461 | AN69: -1.245333863 | AO69: 0.6356672325 | AP69: -1.280455166 | AQ69: 0.664971819 | AR69: -1.315576469 | AS69: 0.6942764054 | AT69: -1.350697773 | AU69: 0.8407993378 | AV69: -1.526304289
B70: 59 | C70: 0.05079491561 | D70: -0.5920180506 | E70: 0.1015898312 | F70: -0.6840361011 | G70: 0.1286449816 | H70: -0.7241586575 | I70: 0.155700132 | J70: -0.7642812139 | K70: 0.1827552824 | L70: -0.8044037703 | M70: 0.2098104327 | N70: -0.8445263267 | O70: 0.2368655831 | P70: -0.8846488831 | Q70: 0.2639207335 | R70: -0.9247714395 | S70: 0.2909758839 | T70: -0.9648939959 | U70: 0.3180310342 | V70: -1.005016552 | W70: 0.3450861846 | X70: -1.045139109 | Y70: 0.372141335 | Z70: -1.085261665 | AA70: 0.3991964854 | AB70: -1.125384221 | AC70: 0.4262516357 | AD70: -1.165506778 | AE70: 0.4533067861 | AF70: -1.205629334 | AG70: 0.4803619365 | AH70: -1.245751891 | AI70: 0.5074170869 | AJ70: -1.285874447 | AK70: 0.5344722372 | AL70: -1.325997003 | AM70: 0.5615273876 | AN70: -1.36611956 | AO70: 0.588582538 | AP70: -1.406242116 | AQ70: 0.6156376884 | AR70: -1.446364673 | AS70: 0.6426928387 | AT70: -1.486487229 | AU70: 0.7779685906 | AV70: -1.687100011
B71: 60 | C71: 0.04632179209 | D71: -0.6120258802 | E71: 0.09264358418 | F71: -0.7240517604 | G71: 0.1174492985 | H71: -0.7691755699 | I71: 0.1422550128 | J71: -0.8142993794 | K71: 0.167060727 | L71: -0.859423189 | M71: 0.1918664413 | N71: -0.9045469985 | O71: 0.2166721556 | P71: -0.949670808 | Q71: 0.2414778699 | R71: -0.9947946175 | S71: 0.2662835842 | T71: -1.039918427 | U71: 0.2910892985 | V71: -1.085042237 | W71: 0.3158950128 | X71: -1.130166046 | Y71: 0.340700727 | Z71: -1.175289856 | AA71: 0.3655064413 | AB71: -1.220413665 | AC71: 0.3903121556 | AD71: -1.265537475 | AE71: 0.4151178699 | AF71: -1.310661284 | AG71: 0.4399235842 | AH71: -1.355785094 | AI71: 0.4647292985 | AJ71: -1.400908903 | AK71: 0.4895350128 | AL71: -1.446032713 | AM71: 0.514340727 | AN71: -1.491156522 | AO71: 0.5391464413 | AP71: -1.536280332 | AQ71: 0.5639521556 | AR71: -1.581404141 | AS71: 0.5887578699 | AT71: -1.626527951 | AU71: 0.7127864413 | AV71: -1.852146998
B72: 61 | C72: 0.04030483449 | D72: -0.6345314578 | E72: 0.08060966898 | F72: -0.7690629155 | G72: 0.1031659472 | H72: -0.8191879782 | I72: 0.1257222254 | J72: -0.8693130408 | K72: 0.1482785036 | L72: -0.9194381035 | M72: 0.1708347818 | N72: -0.9695631661 | O72: 0.19339106 | P72: -1.019688229 | Q72: 0.2159473381 | R72: -1.069813291 | S72: 0.2385036163 | T72: -1.119938354 | U72: 0.2610598945 | V72: -1.170063417 | W72: 0.2836161727 | X72: -1.220188479 | Y72: 0.3061724509 | Z72: -1.270313542 | AA72: 0.3287287291 | AB72: -1.320438605 | AC72: 0.3512850073 | AD72: -1.370563667 | AE72: 0.3738412855 | AF72: -1.42068873 | AG72: 0.3963975637 | AH72: -1.470813793 | AI72: 0.4189538419 | AJ72: -1.520938855 | AK72: 0.4415101201 | AL72: -1.571063918 | AM72: 0.4640663983 | AN72: -1.621188981 | AO72: 0.4866226765 | AP72: -1.671314043 | AQ72: 0.5091789547 | AR72: -1.721439106 | AS72: 0.5317352329 | AT72: -1.771564169 | AU72: 0.6445166239 | AV72: -2.022189482
B73: 62 | C73: 0.0388690248 | D73: -0.6393950498 | E73: 0.0777380496 | F73: -0.7787900996 | G73: 0.09984162879 | H73: -0.8299216645 | I73: 0.121945208 | J73: -0.8810532293 | K73: 0.1440487872 | L73: -0.9321847942 | M73: 0.1661523663 | N73: -0.983316359 | O73: 0.1882559455 | P73: -1.034447924 | Q73: 0.2103595247 | R73: -1.085579489 | S73: 0.2324631039 | T73: -1.136711054 | U73: 0.2545666831 | V73: -1.187842618 | W73: 0.2766702622 | X73: -1.238974183 | Y73: 0.2987738414 | Z73: -1.290105748 | AA73: 0.3208774206 | AB73: -1.341237313 | AC73: 0.3429809998 | AD73: -1.392368878 | AE73: 0.365084579 | AF73: -1.443500443 | AG73: 0.3871881582 | AH73: -1.494632008 | AI73: 0.4092917373 | AJ73: -1.545763572 | AK73: 0.4313953165 | AL73: -1.596895137 | AM73: 0.4534988957 | AN73: -1.648026702 | AO73: 0.4756024749 | AP73: -1.699158267 | AQ73: 0.4977060541 | AR73: -1.750289832 | AS73: 0.5198096333 | AT73: -1.801421397 | AU73: 0.6303275292 | AV73: -2.057079221
B74: 63 | C74: 0.03735035895 | D74: -0.6443737759 | E74: 0.07470071791 | F74: -0.7887475518 | G74: 0.09635159808 | H74: -0.8408856188 | I74: 0.1180024782 | J74: -0.8930236859 | K74: 0.1396533584 | L74: -0.9451617529 | M74: 0.1613042386 | N74: -0.9972998199 | O74: 0.1829551188 | P74: -1.049437887 | Q74: 0.2046059989 | R74: -1.101575954 | S74: 0.2262568791 | T74: -1.153714021 | U74: 0.2479077593 | V74: -1.205852088 | W74: 0.2695586394 | X74: -1.257990155 | Y74: 0.2912095196 | Z74: -1.310128222 | AA74: 0.3128603998 | AB74: -1.362266289 | AC74: 0.3345112799 | AD74: -1.414404356 | AE74: 0.3561621601 | AF74: -1.466542423 | AG74: 0.3778130403 | AH74: -1.51868049 | AI74: 0.3994639204 | AJ74: -1.570818557 | AK74: 0.4211148006 | AL74: -1.622956624 | AM74: 0.4427656808 | AN74: -1.675094692 | AO74: 0.464416561 | AP74: -1.727232759 | AQ74: 0.4860674411 | AR74: -1.779370826 | AS74: 0.5077183213 | AT74: -1.831508893 | AU74: 0.6159727221 | AV74: -2.092199228
B75: 64 | C75: 0.0357281942 | D75: -0.6495047849 | E75: 0.07145638839 | F75: -0.7990095697 | G75: 0.09265456955 | H75: -0.852154139 | I75: 0.1138527507 | J75: -0.9052987082 | K75: 0.1350509319 | L75: -0.9584432775 | M75: 0.156249113 | N75: -1.011587847 | O75: 0.1774472942 | P75: -1.064732416 | Q75: 0.1986454753 | R75: -1.117876985 | S75: 0.2198436565 | T75: -1.171021554 | U75: 0.2410418376 | V75: -1.224166124 | W75: 0.2622400188 | X75: -1.277310693 | Y75: 0.2834382 | Z75: -1.330455262 | AA75: 0.3046363811 | AB75: -1.383599831 | AC75: 0.3258345623 | AD75: -1.436744401 | AE75: 0.3470327434 | AF75: -1.48988897 | AG75: 0.3682309246 | AH75: -1.543033539 | AI75: 0.3894291057 | AJ75: -1.596178108 | AK75: 0.4106272869 | AL75: -1.649322678 | AM75: 0.431825468 | AN75: -1.702467247 | AO75: 0.4530236492 | AP75: -1.755611816 | AQ75: 0.4742218304 | AR75: -1.808756385 | AS75: 0.4954200115 | AT75: -1.861900954 | AU75: 0.6014109173 | AV75: -2.127623801
B76: 65 | C76: 0.03400787512 | D76: -0.6547691797 | E76: 0.06801575023 | F76: -0.8095383594 | G76: 0.08876123238 | H76: -0.8636894308 | I76: 0.1095067145 | J76: -0.9178405022 | K76: 0.1302521967 | L76: -0.9719915737 | M76: 0.1509976788 | N76: -1.026142645 | O76: 0.1717431609 | P76: -1.080293717 | Q76: 0.1924886431 | R76: -1.134444788 | S76: 0.2132341252 | T76: -1.188595859 | U76: 0.2339796074 | V76: -1.242746931 | W76: 0.2547250895 | X76: -1.296898002 | Y76: 0.2754705717 | Z76: -1.351049074 | AA76: 0.2962160538 | AB76: -1.405200145 | AC76: 0.3169615359 | AD76: -1.459351217 | AE76: 0.3377070181 | AF76: -1.513502288 | AG76: 0.3584525002 | AH76: -1.567653359 | AI76: 0.3791979824 | AJ76: -1.621804431 | AK76: 0.3999434645 | AL76: -1.675955502 | AM76: 0.4206889467 | AN76: -1.730106574 | AO76: 0.4414344288 | AP76: -1.784257645 | AQ76: 0.4621799109 | AR76: -1.838408717 | AS76: 0.4829253931 | AT76: -1.892559788 | AU76: 0.5866528038 | AV76: -2.163315145
B77: 66 | C77: =E77/2 -> 0.02914825049 | D77: =-0.25+F77/2 -> -0.6685796805 | E77: 0.05829650099 | F77: -0.8371593611 | G77: 0.07765895099 | H77: -0.8943670278 | I77: 0.09702140099 | J77: -0.9515746944 | K77: 0.116383851 | L77: -1.008782361 | M77: 0.135746301 | N77: -1.065990028 | O77: 0.155108751 | P77: -1.123197694 | Q77: 0.174471201 | R77: -1.180405361 | S77: 0.193833651 | T77: -1.237613028 | U77: 0.213196101 | V77: -1.294820694 | W77: 0.232558551 | X77: -1.352028361 | Y77: 0.251921001 | Z77: -1.409236028 | AA77: 0.271283451 | AB77: -1.466443694 | AC77: 0.290645901 | AD77: -1.523651361 | AE77: 0.310008351 | AF77: -1.580859028 | AG77: 0.329370801 | AH77: -1.638066694 | AI77: 0.348733251 | AJ77: -1.695274361 | AK77: 0.368095701 | AL77: -1.752482028 | AM77: 0.387458151 | AN77: -1.809689694 | AO77: 0.406820601 | AP77: -1.866897361 | AQ77: 0.426183051 | AR77: -1.924105028 | AS77: 0.445545501 | AT77: -1.981312694 | AU77: =2*AS77-AI77 -> 0.542357751 | AV77: =2*AT77-AJ77 -> -2.267351028
B78: 67 | C78: 0.02466338718 | D78: -0.681303706 | E78: 0.04932677435 | F78: -0.862607412 | G78: 0.06730619221 | H78: -0.9228716739 | I78: 0.08528561007 | J78: -0.9831359358 | K78: 0.1032650279 | L78: -1.043400198 | M78: 0.1212444458 | N78: -1.10366446 | O78: 0.1392238636 | P78: -1.163928722 | Q78: 0.1572032815 | R78: -1.224192983 | S78: 0.1751826994 | T78: -1.284457245 | U78: 0.1931621172 | V78: -1.344721507 | W78: 0.2111415351 | X78: -1.404985769 | Y78: 0.2291209529 | Z78: -1.465250031 | AA78: 0.2471003708 | AB78: -1.525514293 | AC78: 0.2650797886 | AD78: -1.585778555 | AE78: 0.2830592065 | AF78: -1.646042817 | AG78: 0.3010386244 | AH78: -1.706307079 | AI78: 0.3190180422 | AJ78: -1.766571341 | AK78: 0.3369974601 | AL78: -1.826835602 | AM78: 0.3549768779 | AN78: -1.887099864 | AO78: 0.3729562958 | AP78: -1.947364126 | AQ78: 0.3909357136 | AR78: -2.007628388 | AS78: 0.4089151315 | AT78: -2.06789265 | AU78: 0.4988122208 | AV78: -2.36921396
B79: 68 | C79: 0.02055330474 | D79: -0.6929415571 | E79: 0.04110660947 | F79: -0.8858831143 | G79: 0.05770299519 | H79: -0.9492039714 | I79: 0.0742993809 | J79: -1.012524829 | K79: 0.09089576662 | L79: -1.075845686 | M79: 0.1074921523 | N79: -1.139166543 | O79: 0.124088538 | P79: -1.2024874 | Q79: 0.1406849238 | R79: -1.265808257 | S79: 0.1572813095 | T79: -1.329129114 | U79: 0.1738776952 | V79: -1.392449971 | W79: 0.1904740809 | X79: -1.455770829 | Y79: 0.2070704666 | Z79: -1.519091686 | AA79: 0.2236668523 | AB79: -1.582412543 | AC79: 0.240263238 | AD79: -1.6457334 | AE79: 0.2568596238 | AF79: -1.709054257 | AG79: 0.2734560095 | AH79: -1.772375114 | AI79: 0.2900523952 | AJ79: -1.835695971 | AK79: 0.3066487809 | AL79: -1.899016829 | AM79: 0.3232451666 | AN79: -1.962337686 | AO79: 0.3398415523 | AP79: -2.025658543 | AQ79: 0.356437938 | AR79: -2.0889794 | AS79: 0.3730343238 | AT79: -2.152300257 | AU79: 0.4560162523 | AV79: -2.468904543
B80: 69 | C80: 0.01681801158 | D80: -0.7034933666 | E80: 0.03363602316 | F80: -0.9069867333 | G80: 0.04884937673 | H80: -0.9733641857 | I80: 0.0640627303 | J80: -1.039741638 | K80: 0.07927608387 | L80: -1.10611909 | M80: 0.09448943745 | N80: -1.172496543 | O80: 0.109702791 | P80: -1.238873995 | Q80: 0.1249161446 | R80: -1.305251448 | S80: 0.1401294982 | T80: -1.3716289 | U80: 0.1553428517 | V80: -1.438006352 | W80: 0.1705562053 | X80: -1.504383805 | Y80: 0.1857695589 | Z80: -1.570761257 | AA80: 0.2009829124 | AB80: -1.637138709 | AC80: 0.216196266 | AD80: -1.703516162 | AE80: 0.2314096196 | AF80: -1.769893614 | AG80: 0.2466229732 | AH80: -1.836271067 | AI80: 0.2618363267 | AJ80: -1.902648519 | AK80: 0.2770496803 | AL80: -1.969025971 | AM80: 0.2922630339 | AN80: -2.035403424 | AO80: 0.3074763874 | AP80: -2.101780876 | AQ80: 0.322689741 | AR80: -2.168158329 | AS80: 0.3379030946 | AT80: -2.234535781 | AU80: 0.4139698624 | AV80: -2.566423043
B81: 70 | C81: 0.01345753056 | D81: -0.7129595502 | E81: 0.02691506113 | F81: -0.9259191003 | G81: 0.04074538256 | H81: -0.9953531479 | I81: 0.05457570398 | J81: -1.064787196 | K81: 0.06840602541 | L81: -1.134221243 | M81: 0.08223634684 | N81: -1.203655291 | O81: 0.09606666827 | P81: -1.273089338 | Q81: 0.1098969897 | R81: -1.342523386 | S81: 0.1237273111 | T81: -1.411957434 | U81: 0.1375576326 | V81: -1.481391481 | W81: 0.151387954 | X81: -1.550825529 | Y81: 0.1652182754 | Z81: -1.620259576 | AA81: 0.1790485968 | AB81: -1.689693624 | AC81: 0.1928789183 | AD81: -1.759127672 | AE81: 0.2067092397 | AF81: -1.828561719 | AG81: 0.2205395611 | AH81: -1.897995767 | AI81: 0.2343698826 | AJ81: -1.967429815 | AK81: 0.248200204 | AL81: -2.036863862 | AM81: 0.2620305254 | AN81: -2.10629791 | AO81: 0.2758608468 | AP81: -2.175731957 | AQ81: 0.2896911683 | AR81: -2.245166005 | AS81: 0.3035214897 | AT81: -2.314600053 | AU81: 0.3726730968 | AV81: -2.661770291
B82: 71 | C82: 0.01047188147 | D82: -0.7213405122 | E82: 0.02094376293 | F82: -0.9426810244 | G82: 0.03339105222 | H82: -1.015171667 | I82: 0.0458383415 | J82: -1.08766231 | K82: 0.05828563079 | L82: -1.160152953 | M82: 0.07073292007 | N82: -1.232643596 | O82: 0.08318020936 | P82: -1.305134239 | Q82: 0.09562749865 | R82: -1.377624882 | S82: 0.1080747879 | T82: -1.450115524 | U82: 0.1205220772 | V82: -1.522606167 | W82: 0.1329693665 | X82: -1.59509681 | Y82: 0.1454166558 | Z82: -1.667587453 | AA82: 0.1578639451 | AB82: -1.740078096 | AC82: 0.1703112344 | AD82: -1.812568739 | AE82: 0.1827585236 | AF82: -1.885059382 | AG82: 0.1952058129 | AH82: -1.957550024 | AI82: 0.2076531022 | AJ82: -2.030040667 | AK82: 0.2201003915 | AL82: -2.10253131 | AM82: 0.2325476808 | AN82: -2.175021953 | AO82: 0.2449949701 | AP82: -2.247512596 | AQ82: 0.2574422594 | AR82: -2.320003239 | AS82: 0.2698895486 | AT82: -2.392493882 | AU82: 0.3321259951 | AV82: -2.754947096
B83: 72 | C83: 0.007861095454 | D83: -0.7286369936 | E83: 0.01572219091 | F83: -0.9572739871 | G83: 0.02678644805 | H83: -1.032821225 | I83: 0.03785070519 | J83: -1.108368463 | K83: 0.04891496234 | L83: -1.183915701 | M83: 0.05997921948 | N83: -1.259462939 | O83: 0.07104347662 | P83: -1.335010178 | Q83: 0.08210773377 | R83: -1.410557416 | S83: 0.09317199091 | T83: -1.486104654 | U83: 0.1042362481 | V83: -1.561651892 | W83: 0.1153005052 | X83: -1.63719913 | Y83: 0.1263647623 | Z83: -1.712746368 | AA83: 0.1374290195 | AB83: -1.788293606 | AC83: 0.1484932766 | AD83: -1.863840844 | AE83: 0.1595575338 | AF83: -1.939388082 | AG83: 0.1706217909 | AH83: -2.01493532 | AI83: 0.1816860481 | AJ83: -2.090482559 | AK83: 0.1927503052 | AL83: -2.166029797 | AM83: 0.2038145623 | AN83: -2.241577035 | AO83: 0.2148788195 | AP83: -2.317124273 | AQ83: 0.2259430766 | AR83: -2.392671511 | AS83: 0.2370073338 | AT83: -2.468218749 | AU83: 0.2923286195 | AV83: -2.845954939
B84: 73 | C84: 0.005625207902 | D84: -0.7348501024 | E84: 0.0112504158 | F84: -0.9697002048 | G84: 0.0209316408 | H84: -1.048304038 | I84: 0.0306128658 | J84: -1.126907871 | K84: 0.0402940908 | L84: -1.205511705 | M84: 0.0499753158 | N84: -1.284115538 | O84: 0.0596565408 | P84: -1.362719371 | Q84: 0.0693377658 | R84: -1.441323205 | S84: 0.0790189908 | T84: -1.519927038 | U84: 0.0887002158 | V84: -1.598530871 | W84: 0.0983814408 | X84: -1.677134705 | Y84: 0.1080626658 | Z84: -1.755738538 | AA84: 0.1177438908 | AB84: -1.834342371 | AC84: 0.1274251158 | AD84: -1.912946205 | AE84: 0.1371063408 | AF84: -1.991550038 | AG84: 0.1467875658 | AH84: -2.070153871 | AI84: 0.1564687908 | AJ84: -2.148757705 | AK84: 0.1661500158 | AL84: -2.227361538 | AM84: 0.1758312408 | AN84: -2.305965371 | AO84: 0.1855124658 | AP84: -2.384569205 | AQ84: 0.1951936908 | AR84: -2.463173038 | AS84: 0.2048749158 | AT84: -2.541776871 | AU84: 0.2532810408 | AV84: -2.934796038
B85: 74 | C85: 0.003764255287 | D85: -0.7399817234 | E85: 0.007528510574 | F85: -0.9799634468 | G85: 0.01582670343 | H85: -1.061623875 | I85: 0.02412489629 | J85: -1.143284304 | K85: 0.03242308915 | L85: -1.224944733 | M85: 0.040721282 | N85: -1.306605161 | O85: 0.04901947486 | P85: -1.38826559 | Q85: 0.05731766772 | R85: -1.469926018 | S85: 0.06561586057 | T85: -1.551586447 | U85: 0.07391405343 | V85: -1.633246875 | W85: 0.08221224629 | X85: -1.714907304 | Y85: 0.09051043915 | Z85: -1.796567733 | AA85: 0.098808632 | AB85: -1.878228161 | AC85: 0.1071068249 | AD85: -1.95988859 | AE85: 0.1154050177 | AF85: -2.041549018 | AG85: 0.1237032106 | AH85: -2.123209447 | AI85: 0.1320014034 | AJ85: -2.204869875 | AK85: 0.1402995963 | AL85: -2.286530304 | AM85: 0.1485977891 | AN85: -2.368190733 | AO85: 0.156895982 | AP85: -2.449851161 | AQ85: 0.1651941749 | AR85: -2.53151159 | AS85: 0.1734923677 | AT85: -2.613172018 | AU85: 0.214983332 | AV85: -3.021474161
B86: 75 | C86: 0.002278247205 | D86: -0.7440351856 | E86: 0.004556494411 | F86: -0.9880703712 | G86: 0.01147165513 | H86: -1.072787395 | I86: 0.01838681584 | J86: -1.157504419 | K86: 0.02530197655 | L86: -1.242221443 | M86: 0.03221713727 | N86: -1.326938466 | O86: 0.03913229798 | P86: -1.41165549 | Q86: 0.0460474587 | R86: -1.496372514 | S86: 0.05296261941 | T86: -1.581089538 | U86: 0.05987778013 | V86: -1.665806562 | W86: 0.06679294084 | X86: -1.750523585 | Y86: 0.07370810155 | Z86: -1.835240609 | AA86: 0.08062326227 | AB86: -1.919957633 | AC86: 0.08753842298 | AD86: -2.004674657 | AE86: 0.0944535837 | AF86: -2.089391681 | AG86: 0.1013687444 | AH86: -2.174108705 | AI86: 0.1082839051 | AJ86: -2.258825728 | AK86: 0.1151990658 | AL86: -2.343542752 | AM86: 0.1221142266 | AN86: -2.428259776 | AO86: 0.1290293873 | AP86: -2.5129768 | AQ86: 0.135944548 | AR86: -2.597693824 | AS86: 0.1428597087 | AT86: -2.682410847 | AU86: 0.1774355123 | AV86: -3.105995966
B87: 76 | C87: 0.001167046555 | D87: -0.7470172187 | E87: 0.002334093111 | F87: -0.9940344373 | G87: 0.007866221682 | H87: -1.081808056 | I87: 0.01339835025 | J87: -1.169581675 | K87: 0.01893047882 | L87: -1.257355294 | M87: 0.0244626074 | N87: -1.345128914 | O87: 0.02999473597 | P87: -1.432902533 | Q87: 0.03552686454 | R87: -1.520676152 | S87: 0.04105899311 | T87: -1.608449771 | U87: 0.04659112168 | V87: -1.69622339 | W87: 0.05212325025 | X87: -1.783997009 | Y87: 0.05765537882 | Z87: -1.871770628 | AA87: 0.0631875074 | AB87: -1.959544247 | AC87: 0.06871963597 | AD87: -2.047317866 | AE87: 0.07425176454 | AF87: -2.135091485 | AG87: 0.07978389311 | AH87: -2.222865104 | AI87: 0.08531602168 | AJ87: -2.310638723 | AK87: 0.09084815025 | AL87: -2.398412342 | AM87: 0.09638027882 | AN87: -2.486185961 | AO87: 0.1019124074 | AP87: -2.57395958 | AQ87: 0.107444536 | AR87: -2.661733199 | AS87: 0.1129766645 | AT87: -2.749506818 | AU87: 0.1406373074 | AV87: -3.188374914
B88: 77 | C88: 0.0004297784256 | D88: -0.7489434667 | E88: 0.0008595568513 | F88: -0.9978869335 | G88: 0.00500865328 | H88: -1.088717148 | I88: 0.009157749708 | J88: -1.179547362 | K88: 0.01330684614 | L88: -1.270377576 | M88: 0.01745594257 | N88: -1.361207791 | O88: 0.02160503899 | P88: -1.452038005 | Q88: 0.02575413542 | R88: -1.542868219 | S88: 0.02990323185 | T88: -1.633698433 | U88: 0.03405232828 | V88: -1.724528648 | W88: 0.03820142471 | X88: -1.815358862 | Y88: 0.04235052114 | Z88: -1.906189076 | AA88: 0.04649961757 | AB88: -1.997019291 | AC88: 0.05064871399 | AD88: -2.087849505 | AE88: 0.05479781042 | AF88: -2.178679719 | AG88: 0.05894690685 | AH88: -2.269509933 | AI88: 0.06309600328 | AJ88: -2.360340148 | AK88: 0.06724509971 | AL88: -2.451170362 | AM88: 0.07139419614 | AN88: -2.542000576 | AO88: 0.07554329257 | AP88: -2.632830791 | AQ88: 0.07969238899 | AR88: -2.723661005 | AS88: 0.08384148542 | AT88: -2.814491219 | AU88: 0.1045869676 | AV88: -3.268642291
B89: 78 | C89: 6.089989219e-05 | D89: -0.7498608998 | E89: 0.0001217997844 | F89: -0.9997217996 | G89: 0.00288786407 | H89: -1.093608609 | I89: 0.005653928356 | J89: -1.187495419 | K89: 0.008419992642 | L89: -1.281382228 | M89: 0.01118605693 | N89: -1.375269038 | O89: 0.01395212121 | P89: -1.469155847 | Q89: 0.0167181855 | R89: -1.563042657 | S89: 0.01948424978 | T89: -1.656929466 | U89: 0.02225031407 | V89: -1.750816276 | W89: 0.02501637836 | X89: -1.844703085 | Y89: 0.02778244264 | Z89: -1.938589895 | AA89: 0.03054850693 | AB89: -2.032476704 | AC89: 0.03331457121 | AD89: -2.126363514 | AE89: 0.0360806355 | AF89: -2.220250323 | AG89: 0.03884669978 | AH89: -2.314137133 | AI89: 0.04161276407 | AJ89: -2.408023942 | AK89: 0.04437882836 | AL89: -2.501910752 | AM89: 0.04714489264 | AN89: -2.595797562 | AO89: 0.04991095693 | AP89: -2.689684371 | AQ89: 0.05267702121 | AR89: -2.783571181 | AS89: 0.0554430855 | AT89: -2.87745799 | AU89: 0.06927340693 | AV89: -3.346892038
B90: 79 | C90: 0 | D90: -0.75 | E90: 0 | F90: -1 | G90: 0.001383032143 | H90: -1.096943405 | I90: 0.002766064286 | J90: -1.19388681 | K90: 0.004149096429 | L90: -1.290830214 | M90: 0.005532128571 | N90: -1.387773619 | O90: 0.006915160714 | P90: -1.484717024 | Q90: 0.008298192857 | R90: -1.581660429 | S90: 0.009681225 | T90: -1.678603833 | U90: 0.01106425714 | V90: -1.775547238 | W90: 0.01244728929 | X90: -1.872490643 | Y90: 0.01383032143 | Z90: -1.969434048 | AA90: 0.01521335357 | AB90: -2.066377452 | AC90: 0.01659638571 | AD90: -2.163320857 | AE90: 0.01797941786 | AF90: -2.260264262 | AG90: 0.01936245 | AH90: -2.357207667 | AI90: 0.02074548214 | AJ90: -2.454151071 | AK90: 0.02212851429 | AL90: -2.551094476 | AM90: 0.02351154643 | AN90: -2.648037881 | AO90: 0.02489457857 | AP90: -2.744981286 | AQ90: 0.02627761071 | AR90: -2.84192469 | AS90: 0.02766064286 | AT90: -2.938868095 | AU90: 0.03457580357 | AV90: -3.423585119
B91: 80 | C91: 0 | D91: -0.75 | E91: 0 | F91: -1 | G91: 0 | H91: -1.1 | I91: 0 | J91: -1.2 | K91: 0 | L91: -1.3 | M91: 0 | N91: -1.4 | O91: 0 | P91: -1.5 | Q91: 0 | R91: -1.6 | S91: 0 | T91: -1.7 | U91: 0 | V91: -1.8 | W91: 0 | X91: -1.9 | Y91: 0 | Z91: -2 | AA91: 0 | AB91: -2.1 | AC91: 0 | AD91: -2.2 | AE91: 0 | AF91: -2.3 | AG91: 0 | AH91: -2.4 | AI91: 0 | AJ91: -2.5 | AK91: 0 | AL91: -2.6 | AM91: 0 | AN91: -2.7 | AO91: 0 | AP91: -2.8 | AQ91: 0 | AR91: -2.9 | AS91: 0 | AT91: -3 | AU91: 0 | AV91: -3.5
B92: 81 | C92: =-C90 -> 0 | D92: =D90 -> -0.75 | E92: =-E90 -> 0 | F92: =F90 -> -1 | G92: =-G90 -> -0.001383032143 | H92: =H90 -> -1.096943405 | I92: =-I90 -> -0.002766064286 | J92: =J90 -> -1.19388681 | K92: =-K90 -> -0.004149096429 | L92: =L90 -> -1.290830214 | M92: =-M90 -> -0.005532128571 | N92: =N90 -> -1.387773619 | O92: =-O90 -> -0.006915160714 | P92: =P90 -> -1.484717024 | Q92: =-Q90 -> -0.008298192857 | R92: =R90 -> -1.581660429 | S92: =-S90 -> -0.009681225 | T92: =T90 -> -1.678603833 | U92: =-U90 -> -0.01106425714 | V92: =V90 -> -1.775547238 | W92: =-W90 -> -0.01244728929 | X92: =X90 -> -1.872490643 | Y92: =-Y90 -> -0.01383032143 | Z92: =Z90 -> -1.969434048 | AA92: =-AA90 -> -0.01521335357 | AB92: =AB90 -> -2.066377452 | AC92: =-AC90 -> -0.01659638571 | AD92: =AD90 -> -2.163320857 | AE92: =-AE90 -> -0.01797941786 | AF92: =AF90 -> -2.260264262 | AG92: =-AG90 -> -0.01936245 | AH92: =AH90 -> -2.357207667 | AI92: =-AI90 -> -0.02074548214 | AJ92: =AJ90 -> -2.454151071 | AK92: =-AK90 -> -0.02212851429 | AL92: =AL90 -> -2.551094476 | AM92: =-AM90 -> -0.02351154643 | AN92: =AN90 -> -2.648037881 | AO92: =-AO90 -> -0.02489457857 | AP92: =AP90 -> -2.744981286 | AQ92: =-AQ90 -> -0.02627761071 | AR92: =AR90 -> -2.84192469 | AS92: =-AS90 -> -0.02766064286 | AT92: =AT90 -> -2.938868095 | AU92: =-AU90 -> -0.03457580357 | AV92: =AV90 -> -3.423585119
